{"text_format":"1","workbook":"xlsx","n_sheets":23,"sheets":["Cover Page","Contents","Facility Info","Operational Data","Operational Summary","Perf. Form 1","Energy Form 1","Permit Compliance","Improvements","Public Liasion","CO2 N2O","Residue Quality ","Water","Air (periodic)","Air (CEMS)","HCl","SO2","NOx","TOC","Particulates","CO 0.5hourly","CO 95% 10 min","NH3"],"not_rendered":{"charts":8,"images":3,"macros":1,"external_links":1,"defined_names":23,"comments":0,"pivot_tables":0},"unopened":[],"bounds":{"document_bytes":16777216,"sheet_cells":100000,"rows_first":2000,"rows_last":500,"rows_between":2000,"halvings":0,"cell_chars":16384,"cell_head_chars":4096},"cells_cut":0,"cells_raw":0,"read":"whole","date_system":"1900"}

{"sheet":"Cover Page","index":0,"n_rows":53,"n_cols":14,"rows_kept":53,"cut":false,"hidden":false,"merged":[[13,13,18,15],[34,1,34,8],[0,3,5,6],[7,1,23,8],[28,1,28,8],[30,1,30,8],[32,1,32,8],[48,6,48,8],[52,2,52,3],[36,1,36,8],[40,2,40,8],[42,2,42,4],[44,2,44,4],[46,6,46,8],[46,2,46,4],[48,2,48,4]]}
[null,null,null,"Add company logo"]
[null,null,null,null,null,null,null,null,null,null,null,null,null,"Version 22.2"]
[]
[]
[]
[]
[]
[null,"Add photo"]
[]
[]
[]
[]
[null,null,null,null,null,null,null,null,null,null,null,null,null,"Notes:"]
[null,null,null,null,null,null,null,null,null,null,null,null,null,"This template may require adjustments by individual operators to meet specific reporting requirements as defined in the site Permit(s)"]
[]
[]
[]
[]
[]
[]
[]
[]
[]
[]
[]
[]
[]
[]
[null,"Annual Performance Report 2023"]
[]
[null,"Permit EPR/JP3135DK"]
[]
[null,"Kemsley Generating Station"]
[]
[null,"K3 CHP"]
[]
[null,"enfinium K3 CHP Operations Limited"]
[]
[null,"Year:",2023]
[]
[null,"Address:","Barge Way, Sittingbourne, Kent, ME10 2FP"]
[]
[null,"Tel: ","01795 685 740"]
[]
[null,"Email: ","fiona.gormley@enfinium.co.uk"]
[]
[null,"Prepared by:","Fiona Gormley",null,null,"Position:","Quality Manager "]
[]
[null,"Approved by:","Paul McMullen ",null,null,"Position:","Plant Manager"]
[]
[null,"Version:",1]
[]
[null,"Issue Date:","2023-01-25"]

{"sheet":"Contents","index":1,"n_rows":46,"n_cols":11,"rows_kept":46,"cut":false,"hidden":false,"merged":[[4,10,7,14],[8,1,8,6],[3,1,3,6],[4,1,4,6],[5,1,5,6],[6,1,6,6],[7,1,7,6],[21,1,21,6],[9,1,9,6],[10,1,10,6],[11,1,11,6],[12,1,12,6],[14,1,14,6],[15,1,15,6],[16,1,16,6],[17,1,17,6],[18,1,18,6],[19,1,19,6],[20,1,20,6],[13,1,13,6],[36,1,36,6],[22,1,22,6],[23,1,23,6],[24,1,24,6],[27,1,27,6],[28,1,28,6],[29,1,29,6],[30,1,30,6],[31,1,31,6],[32,1,32,6],[35,1,35,6],[37,1,37,6],[45,0,48,9],[38,1,38,6],[39,1,39,6],[40,1,40,6],[41,1,41,6],[42,1,42,6],[43,1,43,6]]}
[{"$f":"+'Cover Page'!$B$29","v":"Annual Performance Report 2023"},null,null,null,{"$f":"+'Cover Page'!$B$33","v":"Kemsley Generating Station"}]
[]
["Contents",null,null,null,null,null,null,null,null,null,"Notes:"]
["Section","Subject",null,null,null,null,null,"Page ",null,null,"Section references and Page nos. to be inserted"]
[1,"Facility Information",null,null,null,null,null,3,null,null,"Sections and Subjects may require adjustment by individual operators to meet specific reporting requirements as defined in the sites Permit(s)"]
[2,"Operational Summary",null,null,null,null,null,4]
[3,"Operational Data",null,null,null,null,null,5]
[4,"Performance Form 1",null,null,null,null,null,6]
[5,"Energy Form 1",null,null,null,null,null,7]
[6,"Permit Compliance",null,null,null,null,null,8]
[7,"Improvements",null,null,null,null,null,9]
[8,"Public Liasion",null,null,null,null,null,10]
[9,"Residue Quality - Optional",null,null,null,null,null,11]
[10,"Carbon Dioxide Emissions",null,null,null,null,null,12]
[11,"Emissions to Water",null,null,null,null,null,13]
[12,"Emissions to Air (periodically monitored)",null,null,null,null,null,14]
[13,"Emissions to Air (continuously monitored)",null,null,null,null,null,15]
[14,"Hydrogen Chloride emissions",null,null,null,null,null,16]
[15,"Sulphur Dioxdie emsissions",null,null,null,null,null,17]
[16,"Oxides of Notrigen emissions",null,null,null,null,null,18]
[17,"Total Organic Carbon emissions",null,null,null,null,null,19]
[18,"Particulate Matter emissions",null,null,null,null,null,20]
[19,"Carbon Monoxide emissions",null,null,null,null,null,21]
[20,"Ammonia emissions",null,null,null,null,null,22]
[]
[]
["Version Control"]
["Section","Information",null,null,null,null,null,"Date"]
["All","Draft Report",null,null,null,null,null,"2024-01-12"]
["All","Final Report - Version 1",null,null,null,null,null,"2024-01-25"]
[]
[]
[]
[]
["Distribution"]
["Copy","Name, Role",null,null,null,null,null,"No."]
[null,"InstallationsKSLES@environment-agency.gov.uk - Regulator (EA) "]
[null,"John.Tollervey@environment-agency.gov.uk - Senior Technical Specialist (EA)"]
[null,"Paul.McMullen@enfinium.co.uk - Plant Manager"]
[null,"Fiona.Gormley@enfinium.co.uk - Quality Manager "]
[null,"Luke.Clothier@enfinium.co.uk - Environmental Officer"]
[null,"David.Pailing@enfinium.co.uk - Operations Manager"]
[]
[]
[]
["This report is required under the Industrial Emissions Directive’s Article 55(2) requirements on reporting and public information on waste incineration plants and co-incineration plants, which require the operator to produce an annual report on the functioning and monitoring of the plant and make it available to the public. "]

{"sheet":"Facility Info","index":2,"n_rows":20,"n_cols":11,"rows_kept":20,"cut":false,"hidden":false,"merged":[[3,0,16,8],[19,0,51,8],[3,10,12,13],[19,10,28,13]]}
[{"$f":"+'Cover Page'!$B$29","v":"Annual Performance Report 2023"},null,null,null,{"$f":"+'Cover Page'!$B$33","v":"Kemsley Generating Station"}]
[" "]
["Plant Description and Design",null,null,null,null,null,null,null,null,null,"Notes:"]
["The Kemsley Energy Recovery Facility (ERF) forms part of the Kemsley Paper Mill installation comprising of the DS Smith Kemsley Paper Mill and the E.On combined heat and power facility. It is located at grid reference 592170,166640 to the east of Kemsley, 3 km north of Sittingbourne and 2.5 km south east of Iwade.\n\nThe installation consists of two combustion lines and processes up to 657,000 tonnes of residual waste per annum (tpa); primarily commercial and industrial (C&I) waste and residual Municipal Solid Waste (MSW) which is collected and delivered by external waste management companies.  \n\nEnergy is recovered in the process by utilising the steam generated in the boiler to drive a turbine to generate electricity. Approximately 45MW of electricity can be exported to grid per hour and 55MWth per hour of steam can be supplied to neighbouring businesses (the paper mill when it is running at capacity). Recyclable materials in the form of incinerator bottom ash (IBA) and metals from the IBA are also recovered from the process. \n\nThe existing permit (Permit number EPR/JP3135DK) allows the facility to accept municipal, industrial and commercial waste and undertake the following activities:\n•\tReceipt and storage of waste pending processing;\n•\tElectricity and steam generation; and\n•\tDisposal of waste arising (incinerator bottom ash (IBA) and air pollution control residues (APCR).",null,null,null,null,null,null,null,null,null,"Include summary of plant design, design capacity, no. of combustion lines, electrical and heat capacity and any other general information that describes the facility, its location and purpose "]
[]
[]
[]
[]
[]
[]
[]
[]
[]
[]
[]
[]
[]
[]
["Summary of Operational Processes and Procedures"]
["Municipal solid wastes and commercial wastes accepted at the installation are delivered in covered vehicles or containers. All vehicles delivering the waste are weighed in at the weighbridge before entering the Tipping Hall and being allowed to discharge waste.\n\nThe residual waste is discharged onto the tipping hall floor and pushed into the bunker using mobile plant and is utilised as feedstock for the ERF. The waste in the bunker is mixed with a crane to create a homogenous feedstock and to prevent anaerobic conditions and hence odour.\n\nWaste is loaded into the incinerator, using the crane, via the feed hopper. The facility processes waste using air cooled, moving grate technology. The grate is split into 5 zones; zone 1 is the drying zone; 2-3 are the main combustion zones and 4-5 are the burn out zones. Primary and secondary air supply is controlled to ensure good combustion conditions, additional support in combustion is provided through tertiary air injection. A temperature of at least 850°C for at least 2 seconds (T2S) is achieved.\n\nAfter the waste has been burned the remaining unburnt material, called incinerator bottom ash (IBA) is quenched in water. The bottom ash is transported by conveyor to an indoor storage area. The IBA is stored here until it is sent off site to a suitably licensed waste treatment facility for re-processing/recovery.\n\nThe flue gas is treated within the dry Flue Gas Treatment (FGT) system to reduce the level of pollutants emitted and to comply with the requirements of the Industrial Emissions Directive (IED) and the Environmental Permit. Oxides of Nitrogen (NOx) are abated using dry urea; acid gases such as Hydrogen Chloride (HCl) and Sulphur Dioxins (SO2) are abated using hydrated lime injection. For dioxins and mercury, Powdered Activated Carbon (PAC) abatement is used. Fabric bag filters are utilised for the abatement of particulate matter and also to collect the by-products from both reactions known as Air Pollution Control Residue (APCR) which is transferred to a silo then to a tanker (or sealed bags are sometimes used) for removal from the facility and disposal at a suitably licenced premises. \n\nFollowing clean up, the flue gas is emitted to air through the 90m high stack. The flue gases entering the stack are continuously monitored for HCl, SO2, TOC, CO, NOx, NH3 and Particulates against limits as laid down in the Environmental Permit.\n\nThe heat from the combustion process is used to turn water into high-pressure steam, that steam then powers a turbine to generate electricity for internal use and for export to the National Grid. The facility also has combined heat and power (CHP) capability and supplies the adjacent DS Smith paper mill with steam. Spent steam from the turbine is converted back to condensate in an air-cooled condenser, which feeds back into the condensate tank. The facility is designed to export approximately 45MW of electricity (permitted electrical generation capacity of 74MWe) to the grid, and 55 MWth of steam (permitted heat export capacity of 204 MWth) to the paper mill when it is running at capacity.\n\nThe facility is certified to ISO 45001, 9001 and 14001 and operates an accredited Management System housing the processes and procedures to be followed. The facility has procedures in place including emergency procedures, operating instructions, method statements and risk assessments. All health, safety and environmental incidents, events and resulting investigations and actions are managed within the companies EHS reporting system.\n\nThe facility has a Computer Maintenance Management System (CMMS) in place housing all maintenance tasks and defect reporting. Planned outages take place at specified intervals to allow for boiler cleaning, statutory and essential maintenance to maintain plant reliability and efficiency.",null,null,null,null,null,null,null,null,null,"Include summary of key processes and procedures such as (but not limited to); waste reception, control rooms, grate, bed and boiler, energy & heat  generation, cooling systems, residue management, emission controls, health and safety systems, maintenance"]

{"sheet":"Operational Data","index":3,"n_rows":64,"n_cols":11,"rows_kept":64,"cut":false,"hidden":false,"merged":[[54,0,55,0],[5,10,6,10],[7,10,18,10],[35,1,40,1],[3,1,3,2],[7,1,19,1],[25,1,28,1],[30,1,31,1],[32,2,32,5]]}
[{"$f":"+'Cover Page'!$B$29","v":"Annual Performance Report 2023"},null,null,null,{"$f":"+'Cover Page'!$B$33","v":"Kemsley Generating Station"}]
[]
["Operational Data",null,null,null,null,null,null,null,null,null,"Notes:"]
["Plant Size",657000,null,"tonnes pa",55,"MWth",45,"MWe",null,null,"^ - RDF to include SRF "]
["No. of combustion lines",2,null,"No. of Turbines:",null,1,null,null,null,null,"^^ - CHP plants only"]
[null,null,null,null,null,null,null,null,null,null,"2020 updates include;  heat in MWh, water in Litres, NCV in MJ/kg"]
["Waste types received","Unit","Q1**","Q2","Q3","Q4","Year Total","%"]
["Household / Local Authority","tonnes",68700.3,79255.240000000005,69351.7,68572.573000000004,{"$f":"SUM(C8:F8)","v":285879.81299999997},{"$f":"IF(G8>0,G8/$G$18,\"-\")","v":0.50768375911861707},null,null,"Availabiity Definition: 'the availability of a line is to be calculated by the number of hours the line reported Continuously Monitored emission levels to the Regulator through the calendar year divided by the total number of hours in that year. \nThe overall plant availability is calculated as the Mean of all lines in the plant. For clarity this includes periods of Other Than Normal Operating Conditions (OTNOC) and abnormal operation.'  \n\nRationale: The primary function of an Energy from Waste facility is the disposal of waste. It follows therefore that the availability of a plant is determined by the period of time a facility spends undertaking this activity."]
["Commercial & Industrial ",null,23930.04,25679.94,20810.62,23578.959999999999,{"$f":"SUM(C9:F9)","v":93999.56},0.1669304645036129]
["Hazardous ",null,0,0,0,0,0,"-"]
["Clinical",null,0,0,0,0,0,"-"]
["Waste wood (biomass) ",null,0,0,0,0,0,"-"]
["Refuse Derived Fuel ^ - H'hold/LA",null,0,0,0,0,{"$f":"SUM(C13:F13)","v":0},"-"]
["Refuse Derived Fuel ^^  - C&I",null,47749.5,46587.99,42294.46,46594.76,183226.71,0.32538577637777]
["Other [Please specify]",null,0,0,0,0,0,"-"]
["Other [Please specify]",null,0,0,0,0]
["Other [Please specify]",null,0,0,0,0]
["Total waste received",null,{"$f":"SUM(C8:C17)","v":140379.84},{"$f":"SUM(D8:D17)","v":151523.17000000001},{"$f":"SUM(E8:E17)","v":132456.78},{"$f":"SUM(F8:F17)","v":138746.29300000001},{"$f":"SUM(G8:G17)","v":563106.08299999998},1]
["Rejected Waste ",null,0,0,0,0,{"$f":"SUM(C19:F19)","v":0},{"$f":"IF(G19>0,G19/$G$18,\"-\")","v":"-"}]
["Unprocessed waste transferred out",null,0,0,0,0,{"$f":"SUM(C20:F20)","v":0},{"$f":"IF(G20>0,G20/$G$18,\"-\")","v":"-"}]
["Total waste combusted*",null,140862,152054,129802,143204,{"$f":"SUM(C21:F21)","v":565922},{"$f":"IF(G21>0,G21/$G$18,\"-\")","v":1.0050006865225074}]
["*Total waste combusted = Total waste processed from midnight readings derived from crane weight data."]
["**24.3 tonnes more 200301 and 48.5 tonnes less 191210 than reported in Q1 returns due to a ticket correction."]
[]
["Energy Useage / Export","Unit","Q1","Q2","Q3","Q4","Year Total","KWh/te"]
["Power Generated","MWh",103392,103638,89640,95815,{"$f":"SUM(C26:F26)","v":392485},{"$f":"IF(G26>0,G26*1000/$G$21,\"-\")","v":693.53197083697046}]
["Power Exported",null,92239,91903,78116,84694,{"$f":"SUM(C27:F27)","v":346952},{"$f":"IF(G27>0,G27*1000/$G$21,\"-\")","v":613.07388650732787}]
["Power Used on site",null,{"$f":"C26-C27+C29","v":11225},{"$f":"D26-D27+D29","v":12478},{"$f":"E26-E27+E29","v":11897},{"$f":"F26-F27+F29","v":11682},{"$f":"SUM(C28:F28)","v":47282},{"$f":"IF(G28>0,G28*1000/$G$21,\"-\")","v":83.548616240400619}]
["Power Imported",null,72,743,373,561,{"$f":"SUM(C29:F29)","v":1749},{"$f":"IF(G29>0,G29*1000/$G$21,\"-\")","v":3.0905319107580196}]
["Parasitic Load","%",{"$f":"IF(C26>0,1-C27/(C26+C29),\"-\")","v":0.10849184257326216},{"$f":"IF(D26>0,1-D27/(D26+D29),\"-\")","v":0.11954282867571686},{"$f":"IF(E26>0,1-E27/(E26+E29),\"-\")","v":0.13216979769588832},{"$f":"IF(F26>0,1-F27/(F26+F29),\"-\")","v":0.12121275006225618},{"$f":"IF(G26>0,1-G27/(G26+G29),\"-\")","v":0.11993384639579541},"-"]
["Thermal Energy Produced **","MWh",396343,431836,363280,390706,{"$f":"SUM(C31:F31)","v":1582165},{"$f":"IF(G31>0,G31*1000/$G$21,\"-\")","v":2795.7298002198181}]
["Thermal Energy Exported **",null,77498,93460,98390,93594,{"$f":"SUM(C32:F32)","v":362942},{"$f":"IF(G32>0,G32*1000/$G$21,\"-\")","v":641.32866366743121}]
["R1 value (if applicable)",null,0.91,null,null,null,"-","-"]
[]
["Waste Disposal & Recovery","Unit","Q1","Q2","Q3","Q4","Year Total","% inputs"]
["APC Residues - produced","tonnes",3842,3582,3347,3713,{"$f":"SUM(C36:F36)","v":14484},{"$f":"IF(G36>0,G36/$G$21,\"-\")","v":2.5593633044836566E-2}]
["IBA - produced",null,29933,32451,28943,28531,119858,0.21179243782712104]
["Metals recycling",null,391.34,318.06,252.76,263.73200000000003,1225.8920000000001,2.1661854460508691E-3]
["Other",null,0,0,0,0,0,"-"]
["Other",null,0,0,0,0,0,"-"]
["Other",null,0,0,0,0,0,"-"]
[]
["Raw Material Usage","Unit","Q1","Q2","Q3","Q4","Year Total","kg or Ltr /te"]
["Mains Water","ltrs",3248000,3455000,2554000,1713000,{"$f":"SUM(C44:F44)","v":10970000},{"$f":"IF(G44>0,G44/$G$21,\"-\")","v":19.384296775880774}]
["Other Water","ltrs",0,0,0,null,0,{"$f":"IF(G45>0,G45/$G$21,\"-\")","v":"-"}]
["Ammonia","kgs",0,0,0,null,0,"-"]
["Urea","kgs",93599,122665,100225,123843,{"$f":"SUM(C47:F47)","v":440332},0.77807895787758741]
["Activated Carbon","kgs",39877,43855,38587,40429,162748,0.28758026724530944]
["Lime / hydrated lime","kgs",1708000,1401000,1323000,1432000,5864000,10.36185198666954]
["Fuel oil","ltrs",118155,237673,324845,397688,1078361,1.90549404334873]
["Gas","cf",0,0,0,0,0]
["Other",null,0,0,0,0,0]
[]
["Summary ","Line/Unit","Q1","Q2","Q3","Q4","Year Total",null,null,"Hrs in year "]
["Availability of waste combustion by line, hrs",1,1608,2066,1612,1863,{"$f":"SUM(C55:F55)","v":7149},"-",null,8760]
[null,2,2151.1,2037.8,1894.3,1807.2,7890.4,"-"]
["Overall Availability, mean avg. of all lines, hrs, hrs","-",{"$f":"AVERAGE(C55:C56)","v":1879.55},{"$f":"AVERAGE(D55:D56)","v":2051.9},{"$f":"AVERAGE(E55:E56)","v":1753.15},{"$f":"AVERAGE(F55:F56)","v":1835.1},{"$f":"AVERAGE(G55:G56)","v":7519.7},0.85099999999999998]
["Hours of turbine operations, hrs",1,2139,2060,1973,1963,{"$f":"SUM(C58:F58)","v":8135},0.92900000000000005]
["Hours of heat / steam export**","-","-","-","-","-",7995.5,"-"]
["Net Calorific Value of waste*","MJ/kg",10172,10200,10381,9947,10067,"-"]
["Abnormal Events","qty.",0,0,0,0,0,{"$f":"IF(G61>0,\"yes\",\"no\")","v":"no"}]
["Abnormal operation","hours",0,0,0,0,0,{"$f":"+(G62)/J55","v":0}]
["Permit Breaches","qty.",0,"       -",0,0,0,{"$f":"IF(G63>0,\"yes\",\"no\")","v":"no"}]
["** this is hours per line, the total for both lines = 15,991 hours"]

{"sheet":"Operational Summary","index":4,"n_rows":29,"n_cols":11,"rows_kept":29,"cut":false,"hidden":false,"merged":[[2,0,2,8],[3,0,25,8],[28,0,49,8],[3,10,12,13],[28,10,37,13],[27,0,27,8]]}
[{"$f":"+'Cover Page'!$B$29","v":"Annual Performance Report 2023"},null,null,null,{"$f":"+'Cover Page'!$B$33","v":"Kemsley Generating Station"}]
[]
["Summary of Plant Operations and Maintenance during the reporting year",null,null,null,null,null,null,null,null,null,"Notes:"]
["The plant performance (boiler and turbine availability) for 2023 was good and comparable with 2022 with a slightly increased boiler availability. The thermal energy produced and steam energy delivered to D.S. Smith remains in line with expectations and previous years. A very slight reduction in the calorific value of the waste was observed and there was an increase in throughput in 2023 compared to 2022. The facility continues to maintain safe and environmentally compliant operations in accordance with the management system and legal requirements.\n\nDetailed PPM (planned preventative maintenance) processes, in line with equipment manufacturers recommendations, are in place and managed within the companies CMMS (Computerised Maintenance Management System).\n\nTwo planned maintenance outages were completed successfully in 2023. In addition to the routine maintenance tasks and statutory inspections, boiler tubes were exchanged and coated to aid in the reduction of unplanned downtime due to tube leaks and improve plant availability. Actilab screws were replaced with an improved, harder wearing material to improve reliability. \n\nLegacy defects continue to be managed from the construction phase.",null,null,null,null,null,null,null,null,null,"Include summary of key operational and/or maintenance activity undertaken in the year, such as any major component upgrades and/or replacements "]
[]
[]
[]
[]
[]
[]
[]
[]
[]
[]
[]
[]
[]
[]
[]
[]
[]
[]
[]
[]
[]
[]
[]
["Summary of Residue Handling for the reporting year"]
["The residues produced from the incineration process include Incinerator Bottom Ash (IBA) and Air Pollution Control Residues (APCR). The facility has procedures in place as part of the management system for the handling of such residues.\n\nThe IBA is sampled and sent to an approved testing laboratory twice a month and for a full hazard analysis once per quarter in accordance with the Environmental Permit. All hazard analysis results have demonstrated the IBA to be non-hazardous. IBA is sent for re-processing at Fortis IBA (Swale), a fully licenced site, where the metals are recovered and the IBA is used to produce construction materials.\n\nAPCR is sampled and tested by the same approved laboratory once per quarter. Due to the inevitable hazardous nature of the APCR it is sent to Augean (Peterborough) where it is treated and landfilled. enfinium continue to investigate opportunities for recycling of this material.\n\nAll testing of residues in carried out in accordance with the Industrial Emissions Directive (IED) and the Environmental Services Association (ESA) sampling and testing protocol.",null,null,null,null,null,null,null,null,null,"Include in here a summary of residue handling regimes and destinations "]

{"sheet":"Perf. Form 1","index":5,"n_rows":54,"n_cols":10,"rows_kept":54,"cut":false,"hidden":false,"merged":[[21,0,21,1],[21,2,21,3],[21,4,21,5],[21,6,21,7],[21,8,21,9],[9,0,9,9],[10,0,10,1],[10,2,10,3],[10,4,10,5],[10,6,10,7],[10,8,10,9],[11,0,11,1],[11,2,11,3],[11,4,11,5],[11,6,11,7],[11,8,11,9],[13,0,13,1],[13,2,13,3],[13,4,13,5],[13,6,13,7],[13,8,13,9],[14,0,14,9],[12,0,12,3],[12,4,12,5],[2,0,2,4],[3,1,3,4],[5,3,5,4],[5,6,5,7],[8,0,8,1],[8,2,8,3],[8,4,8,5],[8,6,8,7],[8,8,8,9],[12,6,12,7],[12,8,12,9],[15,0,15,1],[15,2,15,3],[15,4,15,5],[15,6,15,7],[15,8,15,9],[16,0,16,1],[16,2,16,3],[16,4,16,5],[16,6,16,7],[16,8,16,9],[17,4,17,5],[17,8,17,9],[17,0,17,1],[17,2,17,3],[17,6,17,7],[18,0,18,1],[18,2,18,3],[18,4,18,5],[18,6,18,7],[18,8,18,9],[20,0,20,1],[20,2,20,3],[20,4,20,5],[20,6,20,7],[19,0,19,1],[19,2,19,3],[19,4,19,5],[19,6,19,7],[19,8,19,9],[20,8,20,9],[22,0,22,3],[22,4,22,5],[22,6,22,7],[22,8,22,9],[31,0,31,3],[31,7,31,8],[32,0,32,3],[32,4,32,5],[32,7,32,8],[33,0,33,3],[33,4,33,5],[33,7,33,8],[23,0,23,3],[23,4,23,5],[23,6,23,7],[23,8,23,9],[25,0,25,9],[26,0,28,9],[36,0,36,3],[36,4,36,5],[36,7,36,8],[37,0,37,3],[37,4,37,5],[37,7,37,8],[34,0,34,3],[34,4,34,5],[34,7,34,8],[35,0,35,3],[35,4,35,5],[35,7,35,8],[47,0,47,1],[49,0,49,9],[50,0,51,9],[38,0,38,9],[39,0,40,9],[43,0,43,1],[43,2,43,9],[45,0,45,1],[46,0,46,1]]}
[{"$f":"+'Cover Page'!C39","v":2023}," Annual Reporting Performance Form 1"]
[]
[{"$f":"+'Cover Page'!B31","v":"Permit EPR/JP3135DK"},null,null,null,null,"Operator: ","enfinium K3 CHP Operations Limited"]
["Facility:",{"$f":"+'Cover Page'!B33:I33","v":"Kemsley Generating Station"},null,null,null,"Form:","Performance 1"]
[]
["Reporting  Period from: ",null,null,"01st Jan 2022",null,"to:","31st Dec 2022"]
[]
[{"$f":"+A1","v":2023},"Annual Reporting of Waste Disposal and Recovery"]
["Waste Description",null,"Disposal Route(s)",null,"Disposal Tonnes",null,"Recovery Tonnes",null,"% / tonne of waste incinerated"]
["1) Hazardous Wastes"]
["APC Residues - 19 01 07*",null,"D09",null,14266.7,null,0,null,{"$f":"IF((E11+G11)>0,(E11+G11)/'Operational Data'!$G$21, \"-\")","v":2.520965786804542E-2}]
["IBA",null,"-",null,0,null,0,null,{"$f":"IF((E12+G12)>0,(E12+G12)/'Operational Data'!$G$21, \"-\")","v":"-"}]
["Total Hazardous Waste",null,null,null,{"$f":"SUM(E11:F12)","v":14266.7},null,{"$f":"SUM(G11:H12)","v":0},null,{"$f":"IF((E13+G13)>0,(E13+G13)/'Operational Data'!$G$21, \"-\")","v":2.520965786804542E-2}]
[]
["2) Non-Hazardous Wastes"]
["IBA - 19 01 12",null,"R11",null,0,null,120166,null,{"$f":"IF((E16+G16)>0,(E16+G16)/'Operational Data'!$G$21, \"-\")","v":0.21233668244033629}]
["19 12 02 (Ferrous Metal)",null,"R04",null,0,null,1225.8900000000001,null,{"$f":"IF((E17+G17)>0,(E17+G17)/'Operational Data'!$G$21, \"-\")","v":2.1661819119949393E-3}]
["16 10 02 (Aq. Liquid)",null,"D09",null,2254.6999999999998,null,0,null,{"$f":"IF((E18+G18)>0,(E18+G18)/'Operational Data'!$G$21, \"-\")","v":3.9841179526507184E-3}]
["15 01 06 (Mixed Packaging)",null,"R05",null,0,null,0.28799999999999998,null,{"$f":"IF((E19+G19)>0,(E19+G19)/'Operational Data'!$G$21, \"-\")","v":5.0890405391555727E-7}]
["19 12 12 (Other Waste, oversize)",null,"R04",null,0,null,414.68,null,{"$f":"IF((E20+G20)>0,(E20+G20)/'Operational Data'!$G$21, \"-\")","v":7.327511565198031E-4}]
["20 01 38 (Wood)",null,"R03",null,0,null,7.36,null,{"$f":"IF((E21+G21)>0,(E21+G21)/'Operational Data'!$G$21, \"-\")","v":1.3005325822286464E-5}]
["20 03 01 (Municipal)  ",null,"R01",null,0,null,27.370999999999999,null,{"$f":"IF((E22+G22)>0,(E22+G22)/'Operational Data'!$G$21, \"-\")","v":4.8365322429592766E-5}]
["Total Non-Hazardous Waste",null,null,null,{"$f":"SUM(E16:F22)","v":2254.6999999999998},null,{"$f":"SUM(G16:H22)","v":121841.58899999999},null,{"$f":"IF((E23+G23)>0,(E23+G23)/'Operational Data'!$G$21, \"-\")","v":0.21928161301380752}]
["TOTAL WASTE",null,null,null,{"$f":"+E23+E13","v":16521.400000000001},null,{"$f":"+G23+G13","v":121841.58899999999},null,{"$f":"IF((E24+G24)>0,(E24+G24)/'Operational Data'!$G$21, \"-\")","v":0.24449127088185299}]
[]
["Operator’s comments :"]
["16 10 02 aquouse liquid tonnage increased compared to waste return due to corrected tickets in Q1-3; process in place to rectifiy and eliminate future discrepencies. "]
[]
[]
[]
[{"$f":"+A1","v":2023},"Annual Reporting of Water and Other Raw Material Usage"]
["Raw Material",null,null,null,"Usage",null,"Unit","Specific Usage",null,"Unit"]
["Mains Water",null,null,null,{"$f":"+'Operational Data'!G44","v":10970000},null,"m3",{"$f":"IF(E33>0,E33/'Operational Data'!$G$21,\"-\")","v":19.384296775880774},null,"m3/te"]
["Total Water",null,null,null,{"$f":"+'Operational Data'!G45+'Operational Data'!G44","v":10970000},null,"m3",{"$f":"IF(E34>0,E34/'Operational Data'!$G$21,\"-\")","v":19.384296775880774},null,"m3/te"]
["Urea / Ammonia",null,null,null,{"$f":"+'Operational Data'!G47","v":440332},null,"kg",{"$f":"IF(E35>0,E35/'Operational Data'!$G$21,\"-\")","v":0.77807895787758741},null,"kg/te"]
["Activated Carbon",null,null,null,{"$f":"+'Operational Data'!G48","v":162748},null,"kg",{"$f":"IF(E36>0,E36/'Operational Data'!$G$21,\"-\")","v":0.28758026724530944},null,"kg/te"]
["Lime / hydrated lime / Sodium Bicarb.",null,null,null,{"$f":"+'Operational Data'!G49","v":5864000},null,"kg",{"$f":"IF(E37>0,E37/'Operational Data'!$G$21,\"-\")","v":10.36185198666954},null,"kg/te"]
[]
["Operator’s comments :"]
["-"]
[]
[]
[{"$f":"+A31","v":2023},"Annual Reporting of other performance indicators "]
["Parameter",null,"Results by Line"]
[null,null,"A1","A2","A3","A4","A5",null,"Turbine 1","Turbine 2"]
["Operating hours for the year, hours",null,7147,7890,"-","-","-","-",8140,"-"]
["Number of periods of abnormal operation, qty.",null,0,0,"-","-","-","-",0,"-"]
["Cumulative hours of abnormal operation for this year, hours",null,0,0,"-","-","-","-",0,"-"]
[]
["Operator’s comments :"]
["K3 facility operates 2 lines (2 boilers and 2 emission points) with 1 common turbine. "]
[]
[]
["Signed: ",null,null,null,null,null,"Date:"]

{"sheet":"Energy Form 1","index":6,"n_rows":28,"n_cols":7,"rows_kept":28,"cut":false,"hidden":false,"merged":[[3,1,3,4],[5,3,5,4],[5,6,5,7],[7,0,7,2],[7,3,7,4],[7,6,7,8],[8,0,8,2],[8,3,8,4],[8,6,8,8],[9,0,9,2],[9,3,9,4],[9,6,9,8],[10,0,10,2],[10,3,10,4],[10,6,10,8],[11,0,11,2],[11,3,11,4],[11,6,11,8],[12,0,12,2],[12,3,12,4],[12,6,12,8],[13,0,13,2],[13,3,13,4],[13,6,13,8],[14,0,14,2],[14,3,14,4],[14,6,14,8],[16,0,16,8],[17,0,23,8]]}
[{"$f":"+'Cover Page'!C39","v":2023}," Annual Reporting of Energy Usage/Export"]
[]
[{"$f":"+'Cover Page'!B31","v":"Permit EPR/JP3135DK"},null,null,null,null,"Operator: ","enfinium K3 CHP Operations Limited"]
["Facility:",{"$f":"+'Cover Page'!B33:I33","v":"Kemsley Generating Station"},null,null,null,"Form:","Energy 1"]
[]
["Reporting  Period from: ",null,null,{"$f":"+'Perf. Form 1'!D6:E6","v":"01st Jan 2022"},null,"to:",{"$f":"+'Perf. Form 1'!G6:H6","v":"31st Dec 2022"}]
[]
["Energy Source",null,null,"Energy Usage",null,"Unit","Specific Useage (KWh/tonne incinerated"]
["Electricity Produced",null,null,{"$f":"+'Operational Data'!G26","v":392485},null,"MWh",{"$f":"+'Operational Data'!H26","v":693.53197083697046}]
["Electricity Imported   ",null,null,{"$f":"+'Operational Data'!G29","v":1749},null,"MWh",{"$f":"+'Operational Data'!H29","v":3.0905319107580196}]
["Electricity Exported",null,null,{"$f":"+'Operational Data'!G27","v":346952},null,"MWh",{"$f":"+'Operational Data'!H27","v":613.07388650732787}]
["Gas Oil",null,null,809.47,null,"tonnes","-"]
["Steam/hot water exported",null,null,{"$f":"+'Operational Data'!G32","v":362942},null,"GWh",{"$f":"+'Operational Data'!H32","v":641.32866366743121}]
[]
[]
[]
["Operator’s comments :"]
["Gas (fuel) oil used is for plant only. Fuel oil density used 0.82kg/l."]
[]
[]
[]
[]
[]
[]
[]
[]
[]
["Signed: ",null,null,null,null,null,"Date:"]

{"sheet":"Permit Compliance","index":7,"n_rows":38,"n_cols":12,"rows_kept":38,"cut":false,"hidden":false,"merged":[[17,0,17,9],[24,1,24,3],[25,1,25,3],[26,1,26,3],[27,1,27,3],[18,1,18,3],[18,4,18,6],[18,7,18,9],[19,1,19,3],[19,4,28,6],[19,7,28,9],[21,1,21,3],[22,1,22,3],[23,1,23,3],[20,1,20,3],[28,1,28,3],[7,11,16,14],[37,4,37,8],[8,0,8,1],[8,2,8,4],[8,5,8,8],[9,0,9,1],[9,2,9,4],[9,5,9,8],[10,0,10,1],[10,2,10,4],[10,5,10,8],[11,0,11,1],[11,2,11,4],[11,5,11,8],[12,0,12,1],[12,2,12,4],[6,0,6,1],[6,2,6,8],[7,0,7,1],[7,2,7,4],[7,5,7,8],[12,5,12,8],[13,0,13,1],[13,2,13,4],[13,5,13,8],[14,0,14,1],[15,2,15,4],[15,5,15,8],[14,2,14,4],[14,5,14,8],[15,0,15,1],[36,1,36,3],[36,4,36,6],[36,7,36,9],[34,1,34,3],[34,4,34,6],[34,7,34,9],[32,0,32,9],[30,0,30,10],[35,1,35,3],[35,4,35,6],[35,7,35,9],[31,1,31,3],[31,4,31,6],[31,7,31,9],[33,7,33,9],[33,4,33,6],[33,1,33,3]]}
[{"$f":"+'Cover Page'!$B$29","v":"Annual Performance Report 2023"},null,null,null,{"$f":"+'Cover Page'!$B$33","v":"Kemsley Generating Station"}]
[]
["Summary of Permit Compliance"]
["Compliance with permit limits for continuously monitored pollutants"]
[]
["The plant met its emission limits as shown in the table below:"]
["Substance",null,"Percentage time compliant during operation",null,null,null,null,null,null,null,null,"Notes:"]
[null,null,"Half-hourly limit",null,null,"Daily limit",null,null,null,null,null,"Report to 2 decimal places, i.e. xx.xx%\n\nPlease provide a brief summary of each notification or non-compliance in the table (rather than just referring to notifications that were sent to the Regulator).  \n\n"]
["Particulates",null,1,null,null,1]
["Oxides of nitrogen",null,1,null,null,1]
["Sulphur dioxide",null,1,null,null,1]
["Carbon monoxide",null,"100% 95% of 10-min averages",null,null,1]
["Total organic carbon",null,1,null,null,1]
["Hydrogen chloride",null,1,null,null,1]
["Hydrogen fluoride",null,1,null,null,1]
["Overall",null,1,null,null,1]
[]
["Summary of any notifications or non-compliances under the permit"]
["Date","Summary of notification or non-compliance [including Line/Reference]",null,null,"Reason ",null,null,"Measures taken to prevent reoccurrence"]
["02.03.2023","Schedule 5 (a) notification for potential release to atmosphere from the process through the expansion flap on the boiler roof.",null,null,"The root cause of these events was a rapid energy release inside the boiler pass creating an overpressure situation which opened, by design, the expansion flap(s) on the boiler roof. The release is an emergency safety feature designed into the boiler to reduce chamber pressure and potential harm to personnel working within the boiler building.\nOn all occasions the pressure reduced to safe limits and the flaps closed within seconds of operating.",null,null,"The rapid energy release's (root cause) were unplanned events – therefore not able to be predicted/ prevented in the future. The cause's have been linked to tube leaks and unidentified gas bottles in the waste which is an industry-wide issue. enfinium Kemsley monitor the boiler condition and are adding Inconel to strengthen the boiler tubes. enfinium Kemsley also carries out regular waste inspections and targets any identified problems with suppliers and have also engaged with suppliers via regular duty of care checks and provided training and education through its “No BEARS” (bulky, explosive, anything baled and reels) Campaign."]
["05.03.2023","Schedule 5 (a) notification for potential release to atmosphere from the process through the expansion flap on the boiler roof."]
["04.05.2023","Schedule 5 (a) notification for potential release to atmosphere from the process through the expansion flap on the boiler roof."]
["06.05.2023","Schedule 5 (a) notification for potential release to atmosphere from the process through the expansion flap on the boiler roof."]
["02.06.2023","Schedule 5 (a) notification for potential release to atmosphere from the process through the expansion flap on the boiler roof."]
["06.06.2023","Schedule 5 (a) notification for potential release to atmosphere from the process through the expansion flap on the boiler roof."]
["27.07.2023","Schedule 5 (a) notification for potential release to atmosphere from the process through the expansion flap on the boiler roof."]
["08.08.2023","Schedule 5 (a) notification for potential release to atmosphere from the process through the expansion flap on the boiler roof."]
["23.08.2023","Schedule 5 (a) notification for potential release to atmosphere from the process through the expansion flap on the boiler roof."]
["17.12.2023","Schedule 5 (a) notification for potential release to atmosphere from the process through the expansion flap on the boiler roof."]
[]
["Summary of any complaints received and actions to taken to resolve them."]
["Date","Summary of complaint [including Line/Reference]",null,null,"Reason *",null,null,"Measures taken to prevent reoccurrence"]
["No complaints received in 2023"]
[]
[]
[]
[]
[null,null,null,null,"* including whether substantiated by the operator or the EA"]

{"sheet":"Improvements","index":8,"n_rows":39,"n_cols":5,"rows_kept":39,"cut":false,"hidden":false,"merged":[[37,0,37,8],[38,0,47,8],[4,0,4,8],[5,0,13,8],[15,0,15,8],[16,0,24,8],[26,0,26,8],[27,0,35,8]]}
[{"$f":"+'Cover Page'!$B$29","v":"Annual Performance Report 2023"},null,null,null,{"$f":"+'Cover Page'!$B$33","v":"Kemsley Generating Station"}]
[]
["Summary of Plant Improvements"]
[]
["Summary of any efficiency improvements that have been completed within the year."]
["During the planned outages a programme of Inconel coating application to boiler tubes has been carried out. This coating increases the resistance to corrosion and reducing downtime caused by tubes leaks. This in turn increases the availability of the plant with less downtime and re-heating of the plant meaning more efficient operations. \n\nGale breakers have been installed to the Air Cooled Condensers (ACC) improving their efficiency by reducing wind sheer. \n\nA forced cooling system is being installed on the turbine to enable cooling of the turbine to a safe working temperature within 24 hours rather than the current 80 hour cooling time. This will significantly reduce the time of turbine maintenance improving the efficeny with a quicker return to service and avoidance of burning waste without energy recovery.\n\nWork is ongoing on optamisation of combustion within the plant. This ensures the conditionas and perameters are set correctly for optimal burning conditions enabling the efficient and compliant processing of waste with optimum energy recovery.  \n\nWork has commenced on widining the roadways to reduce waiting times of vehicles, this will result in a quicker turnaround times and reduce the exhaust fumes from idling vehicles.\n\nThe Kemsley facility continues to operate with an approved R1 Status.\n\n"]
[]
[]
[]
[]
[]
[]
[]
[]
[]
["Summary of any permit improvement conditions that have been completed within the year and the resulting environmental benefits."]
["Summary the IC status:\n- IC1 - Environmental Management System - Submitted 15/07/2021, Discharged 22/07/2021.  \n- IC2 - Commissioning Report - Submitted 04/01/2021, Discharged 02/11/2021.\n- IC3 - Performance and Optimisation of the SNCR System - Submitted 21/12/2021, EA requested further            information and it has been agreed this will be submitted as part of IC8 within the new permit.\n- IC4 - Air dispersion Modelling - Submitted 08/10/2021, Discharged 23/08/2023.\n- IC5 - T2S (Residence Time) Testing Report - Submitted 04/12/2020, Discharged 06/08/2021.\n- IC6 - Review of Energy Efficiency Measures - Submitted 25/08/2021, Discharged 23/08/2023.\n- IC7 - Incineration of Sludges - Submitted 25/08/2021, Discharged 31/10/2022.\n- IC8 - NOx Reduction Trial - Submitted 31/10/2023, Awaiting EA response.\n- IC9 - Demonstration of Low and Stable Mercury content (BAT 4) - Submitted 04/09/2023, Awaiting EA response.\n- IC10 - Demonstration of Low and Stable Dioxin content (BAT 4) - Submitted 04/09/2023, Awaiting EA response.\nThese submissions provide evidence that the plant has been installed and operated as per design/ permit requirements.\n"]
[]
[]
[]
[]
[]
[]
[]
[]
[]
["Summary of any changes to the plant or operating techniques which required a variation to the permit and a summary of the resulting environmental impact."]
["No changes to plant or operating techniques requiring a variation application in 2023."]
[]
[]
[]
[]
[]
[]
[]
[]
[]
["Summary of any other improvements made to the plant or planned to be made and a summary of the resulting environmental benefits."]
["A second standby Continuous Emissions Measurement System (CEMS) has been installed meaning the facility now has four CEMS, a duty and a standby on each line enabling 100% redundancy. This will provide full coverage ensuring no data is lost during malfunction of duty CEMS on either combustion lines. \n\nA trial of higher specification stack flow meters (Stackflow400) is underway and showing good correlation with current flow meters. The Stackflow400 meters will be installed across all lines in 2024 providing continuously monitored flow data with a higher accuracy and ability for calibration.\n\nAn Amesa-B unit has been installed to improve the reporting of biogenic carbon fractions.​\n\nAll required testing and trials in accordance with the BREF and new permit was completed as required by the Environmental Permit. The facility is now successfully operating within the new lower Emission Limit Value's (ELV's). Amesa-B project completed – now in operation. ​\n"]

{"sheet":"Public Liasion","index":9,"n_rows":19,"n_cols":5,"rows_kept":19,"cut":false,"hidden":false,"merged":[[4,0,4,8],[18,0,18,8],[13,0,14,1],[13,2,14,8],[15,0,16,1],[15,2,16,8],[12,0,12,1],[12,2,12,8],[5,0,5,1],[5,2,5,8],[6,0,7,1],[6,2,7,8],[8,0,9,1],[8,2,9,8],[11,0,11,8]]}
[{"$f":"+'Cover Page'!$B$29","v":"Annual Performance Report 2023"},null,null,null,{"$f":"+'Cover Page'!$B$33","v":"Kemsley Generating Station"}]
[]
["Details of Public & Stakeholder Liaison"]
[]
["Summary of events held during the reporting year."]
["Date",null,"Description"]
["Monthly",null,"Project meeting with local businesses - KFBP Forum (including DS Smith, E.On, FGS, MVV, McLaren Dalcour, Swale Local Council, Kent Council, Sea Terminals Ridham, national highways)."]
[]
["Quarterly ",null,"Environmental meeting with DS Smith and E.On."]
[]
[]
["List of events planned for next year"]
["Date",null,"Description"]
["Monthly",null,"Project meeting with local businesses - KFBP Forum (including DS Smith, E.On, FGS, MVV, McLaren Dalcour, Swale Local Council, Kent Council, Sea Terminals Ridham, national highways)."]
[]
["Quarterly ",null,"Environmental meeting with DS Smith and E.On."]
[]
[]
["If you wish to be involved in the public liaison programme, please contact: enfinium Kemsley (01795 685 740)"]

{"sheet":"CO2 N2O","index":10,"n_rows":22,"n_cols":7,"rows_kept":22,"cut":false,"hidden":false,"merged":[[22,0,23,2],[4,0,4,2],[8,1,8,2],[8,6,8,16],[10,0,10,2],[12,1,12,2],[12,6,12,16],[15,0,15,2],[17,1,17,2],[17,6,17,16],[19,1,19,2],[19,6,19,16]]}
[{"$f":"+'[1]Cover Page'!$B$29","v":"Annual Performance Report 2022"},null,{"$f":"+'[1]Cover Page'!$B$33","v":"Newhurst ERF"}]
[]
["Carbon dioxide emissions and biogenic content of waste inputs",null,null,null,null,null,"Notes:"]
[]
["Carbon dioxide emissions (all types of plant)"]
["Annual mass of carbon dioxide released","543,018 tonnes "]
["Annual mass of carbon dioxide released per tonne of waste burned","0.96 tonnes"]
["Annual mass of carbon dioxide released per MWh of energy exported","0.78 tonnes/MWh "]
["Description of how annual carbon dioxide mass emission has been calculated","Measured - CEMS Data",null,null,null,null,"Note 1: Where available, data from CO2 CEMS should be used. Otherwise, where no CEMS data is available, a suitable emissions factor should be used based on the tonnage of waste burned e.g.0.992 tCO2/t waste as per Tolvik report 2021, or other justified emissions factor  - refer to embedded Environment Agency guidance note above or updated version for suitable descriptive text."]
[]
["Nitrous oxide emissions (only plants which use ammonia or urea to abate NOx emissions)"]
["Annual mass emissions of nitrous oxide","27.09 tonnes "]
["Description of how annual nitrous oxide mass emission has been calculated","Measured - CEMS Data",null,null,null,null,"Note 2: Where available, data from N2O CEMS should be used, or if no CEMS data is available, from periodic monitoring. Otherwise, a suitable emissions factor should be used based on the tonnage of waste burned e.g. 0.0981 kgN20/t waste as per 2021 Pollution Inventory data for plants with urea-based SNCR - refer to embedded Environment Agency guidance note above or updated version for suitable descriptive text."]
["Total annual carbon dioxide and nitrous oxide emissions as carbon dioxide equivalent (whereby 1 t nitrous oxide is equivalent to 298 t carbon dioxide)","551,091 tonnes CO2e"]
[]
["Biogenic fraction of the waste and biogenic CO2 emissions (only plants burning residual municipal waste, refuse derived fuel or solid recovered fuel)"]
["Yearly average biogenic percentage of the waste by net calorific value (NCV)",0.40899999999999997]
["Description of how biogenic NCV percentage has been calculated or estimated","Bioma",null,null,null,null,"Note 3: Where available, data from waste sampling should be used; otherwise, an estimated figure with justification can be used, or a figure assumed on the basis of a national average e.g. 2017 WRAP data for residual waste of 51.8% biogenic energy content - refer to embedded Environment Agency guidance note above or updated version for suitable descriptive text, quoting standards where relevant. "]
["Percentage of total carbon dioxide emissions arising from biogenic waste",0.40300000000000002]
["Description of how percentage biogenic carbon dioxide emissions have been calculated","Bioma",null,null,null,null,"Note 4: Examples include direct measurement via C14 method or BIOMA software - refer to embedded Environment Agency guidance note above or updated version for suitable descriptive text, quoting standards where relevant. Otherwise, as an approximation (and in lieu of any more accurate metrics which may be developed in future), the measured or estimated biogenic fraction by net calorific value can be assumed to be the same as the biogenic CO2 fraction of the total CO2 emissions from the plant. "]
[]
["Comments:"]

{"sheet":"Residue Quality ","index":11,"n_rows":28,"n_cols":6,"rows_kept":28,"cut":false,"hidden":false,"merged":[[5,0,10,6],[23,3,23,4],[19,2,20,2],[20,3,20,4],[20,5,20,6],[19,3,19,6],[18,0,18,6],[12,0,12,6],[13,0,13,1],[13,2,13,6],[14,0,15,1],[14,2,15,6],[27,0,32,6],[24,3,24,4],[26,0,26,6],[19,0,20,1],[21,0,21,1],[22,0,22,1],[23,0,23,1],[24,0,24,1],[21,3,21,4],[22,3,22,4],[21,5,21,6],[22,5,22,6],[23,5,23,6],[24,5,24,6]]}
[{"$f":"+'Cover Page'!$B$29","v":"Annual Performance Report 2023"},null,null,null,{"$f":"+'Cover Page'!$B$33","v":"Kemsley Generating Station"}]
[]
["Residue Quality Monitoring Requirements"]
[]
["Summary of monitoring undertaken and compliance"]
["The residues produced from the process include Incinerator Bottom Ash (IBA) and Air Pollution Control Residues (APCR). \n\nThe IBA is sampled and sent to an approved testing laboratory twice a month for analysis and both the IBA and APCR are sent for a full hazard analysis once per quarter. All hazard analysis results have demonstrated the IBA to be non-hazardous, APCR is hazardous by nature and disposed of accordingly. \n\nAll testing of residues in carried out in accordance with the Industrial Emissions Directive and the ESA sampling and testing protocol. "]
[]
[]
[]
[]
[]
[]
["Commentary on any specific events"]
["Date & Event",null,"Description"]
["01/01/2023 - 31/12/2023",null,"No specific events, all IBA for 2023 was classed as non-hazardous."]
[]
[]
[]
["Residue Quality Monitoring Results"]
["Parameter (unit) ",null,"Limit","Normal Operation "]
[null,null,null,"Bottom ash  ",null,"APC Residues"]
["Loss on Ignition (average %)",null,"<5%","2023 Average = 1.4%"]
["Total Organic Carbon (average %)",null,"<3%","2023 Average = 0.49%"]
["No. of Assessments Undertaken",null,"---",24,null,4]
["No. of Hazardous Results",null,"---",0]
[]
["Comments :"]
["LOI and TOC for the IBA are an average of the 24 samples taken in 2023, no samples exceeded the set limits within the Environmental Permit.\n\nAll samples were sent for analysis at a fully accredited laboratory."]

{"sheet":"Water","index":12,"n_rows":16,"n_cols":9,"rows_kept":16,"cut":false,"hidden":false,"merged":[[5,0,6,8],[8,0,8,8],[9,0,9,1],[9,2,9,8],[13,0,13,8],[14,0,14,2],[14,3,14,4],[10,0,11,1],[10,2,11,8],[16,0,16,2],[16,3,16,4],[17,0,17,2],[17,3,17,4],[15,0,15,8],[21,0,21,2],[21,3,21,4],[18,0,18,2],[18,3,18,4],[19,0,19,2],[19,3,19,4],[20,0,20,2],[20,3,20,4]]}
[{"$f":"+'Cover Page'!$B$29","v":"Annual Performance Report 2023"},null,null,null,{"$f":"+'Cover Page'!$B$33","v":"Kemsley Generating Station"}]
[]
["Emissions to Water"]
[]
["Summary of monitoring undertaken and compliance"]
["Water balance is achived by a attenuation pond for rainwater with a closed penstock which can emit to the Swale. Regular visual inspections to check for hydrocarbons and particulate are conducted. The penstock requires manual operation and would only be operated following heavy rainfall to prevent flooding, in which case additional inspections and pH testing would be conducted. \n"]
[]
[]
["Commentary on any specific events"]
["Date & Event",null,"Description"]
["-",null,"No events in 2023."]
[]
[]
["Emissions to Water / Sewer"]
["Parameter",null,null,"Monitoring Frequency",null,"Limit","Target","Max.","Average"]
["None set in any permits or consents "]

{"sheet":"Air (periodic)","index":13,"n_rows":40,"n_cols":15,"rows_kept":40,"cut":false,"hidden":false,"merged":[[4,0,4,11],[5,14,8,17],[9,14,11,17],[8,0,8,11],[5,0,6,11],[11,0,11,1],[12,0,12,1],[11,3,11,4],[12,3,12,4],[9,0,10,1],[9,5,9,11],[9,3,10,4],[9,2,10,2],[16,0,16,1],[17,0,17,1],[18,0,18,1],[13,0,13,1],[14,0,14,1],[15,0,15,1],[39,0,40,11],[25,0,25,1],[26,0,26,1],[22,0,22,1],[23,0,23,1],[37,0,37,1],[27,0,27,1],[28,0,28,1],[29,0,29,1],[30,0,30,1],[31,0,31,1],[32,0,32,1],[37,3,37,4],[29,3,29,4],[30,3,30,4],[36,3,36,4],[38,0,38,11],[19,0,19,1],[20,0,20,1],[21,0,21,1],[34,3,34,4],[35,3,35,4],[33,0,33,1],[34,0,34,1],[35,0,35,1],[36,0,36,1],[24,0,24,1],[32,3,32,4],[13,3,13,4],[14,3,14,4],[15,3,15,4],[16,3,16,4],[17,3,17,4],[18,3,18,4],[27,3,27,4],[33,3,33,4],[19,3,19,4],[20,3,20,4],[21,3,21,4],[22,3,22,4],[23,3,23,4],[24,3,24,4],[31,3,31,4],[25,3,25,4],[26,3,26,4],[28,3,28,4]]}
[{"$f":"+'Cover Page'!$B$29","v":"Annual Performance Report 2023"},null,null,null,{"$f":"+'Cover Page'!$B$33","v":"Kemsley Generating Station"}]
[]
["Emissions to Air (Periodically Monitored)"]
[]
["Summary of monitoring undertaken, standards used and compliance",null,null,null,null,null,null,null,null,null,null,null,null,null,"Notes:"]
["Results are below set limits where applicable and comparable with the results from 2022, with the exception of 1 untypical dioxin result (see comments). Sampling and analysis was carried out by MCERTS certified contractors in accordance with the appropriate standards.",null,null,null,null,null,null,null,null,null,null,null,null,null,"Template may require adjustment for any bespoke monitoring requirements of permit. "]
[]
[]
["Results of emissions to air that are periodically monitored"]
["Substance",null,"Ref. Period","Emission Limit Value",null,"Average",null,null,null,null,null,null,null,null,"User to add additional tables as necessary, depending on whether quarterly or bi-annual reporting is required for the compliance year"]
[null,null,null,null,null,"L1 Q1","L1 Q3","L1 Annual Average","L2 Q1","L2 Q3","L2 Annual Average","Both Line Annual Average"]
["Hydrogen fluoride",null,"1 hr","2 mg/m3",null,7.4999999999999997E-2,"<0.024",{"$f":"AVERAGE(F12:G12)","v":7.4999999999999997E-2},0.02,"<0.02",{"$f":"AVERAGE(I12:J12)","v":0.02},{"$f":"AVERAGE(F12:G12,I12:J12)","v":4.7500000000000001E-2}]
["Cd and Th and their compounds",null,"6-8hrs","0.05 mg/m3",null,9.3999999999999997E-4,"<0.0009",{"$f":"AVERAGE(F13:G13)","v":9.3999999999999997E-4},9.7000000000000005E-4,"<0.0009",{"$f":"AVERAGE(I13:J13)","v":9.7000000000000005E-4},{"$f":"AVERAGE(F13:G13,I13:J13)","v":9.5500000000000001E-4}]
["Hg and its compounds",null,"6-8hrs","0.05 mg/m3",null,2.3999999999999998E-3,1.6000000000000001E-3,2E-3,4.4000000000000003E-3,4.3E-3,4.3499999999999997E-3,3.1750000000000003E-3]
["Sb, As, Pb, Cr, Co, Cu, Mn, Ni, V and their compounds",null,"6-8hrs","0.5 mg/m3",null,2.8000000000000001E-2,1.21E-2,2.0049999999999998E-2,1.6E-2,9.7000000000000003E-3,1.285E-2,1.6449999999999999E-2]
["Dioxins & Furans (I-TEQ)",null,"6-8hrs","0.1 ng/m3",null,6.7999999999999996E-3,9.6200000000000001E-3,8.2100000000000003E-3,0.01,3.8399999999999997E-2,2.4199999999999999E-2,1.6204999999999997E-2]
["PCBs (WHO-TEQ Humans / Mammals)",null,"6-8hrs","None set ng/m3",null,5.0000000000000001E-4,1.0950000000000001E-3,7.9750000000000003E-4,6.6E-4,2.8760000000000001E-3,1.768E-3,1.28275E-3]
["PCBs (WHO-TEQ Fish)",null,"6-8hrs","None set ng/m3",null,2.4000000000000001E-5,5.3000000000000001E-5,3.8500000000000001E-5,3.4E-5,1.2300000000000001E-4,7.8500000000000011E-5,5.8499999999999999E-5]
["PCBs (WHO-TEQ Birds)",null,"6-8hrs","None set ng/m3",null,1E-3,2.2820000000000002E-3,1.6410000000000001E-3,1.5E-3,3.9069999999999999E-3,2.7035000000000002E-3,2.1722499999999997E-3]
["Dioxins & Furans (WHO-TEQ Humans / Mammals)",null,"6-8hrs","None set ng/m3",null,6.1000000000000004E-3,9.4900000000000002E-3,7.7949999999999998E-3,6.4999999999999997E-3,3.6600000000000001E-2,2.155E-2,1.46725E-2]
["Dioxins & Furans (WHO-TEQ Fish)",null,"6-8hrs","None set ng/m3",null,6.1999999999999998E-3,1.042E-2,8.3099999999999997E-3,7.7999999999999996E-3,3.9600000000000003E-2,2.3700000000000002E-2,1.6004999999999998E-2]
["Dioxins & Furans (WHO-TEQ Birds)",null,"6-8hrs","None set ng/m3",null,9.4999999999999998E-3,1.506E-2,1.2279999999999999E-2,1.4E-2,6.13E-2,3.7650000000000003E-2,2.4965000000000001E-2]
["Anthanthrene",null,"6-8hrs","None set µg/m3",null,1.9E-3,"N/A",1.9E-3,1.6000000000000001E-3,"N/A",{"$f":"AVERAGE(I23:J23)","v":1.6000000000000001E-3},1.75E-3]
["Benzo(a)anthracene",null,"6-8hrs","None set µg/m3",null,1.9E-3,"N/A",1.9E-3,1.6000000000000001E-3,"N/A",1.6000000000000001E-3,1.75E-3]
["Benzo(a)pyrene",null,"6-8hrs","None set µg/m3",null,1.9E-3,"N/A",1.9E-3,1.6000000000000001E-3,"N/A",1.6000000000000001E-3,1.75E-3]
["Benzo(b)fluoranthene",null,"6-8hrs","None set µg/m3",null,1.9E-3,"N/A",1.9E-3,1.6000000000000001E-3,"N/A",1.6000000000000001E-3,1.75E-3]
["Benzo(b)naptho(2,1-d) thiophene",null,"6-8hrs","None set µg/m3",null,1.9E-3,"N/A",1.9E-3,1.6000000000000001E-3,"N/A",1.6000000000000001E-3,1.75E-3]
["Benzo(c)phenanthrene",null,"6-8hrs","None set µg/m3",null,1.9E-3,"N/A",1.9E-3,1.6000000000000001E-3,"N/A",1.6000000000000001E-3,1.75E-3]
["Benzo(ghi)perylene",null,"6-8hrs","None set µg/m3",null,7.7000000000000002E-3,"N/A",7.7000000000000002E-3,1.6000000000000001E-3,"N/A",1.6000000000000001E-3,4.6500000000000005E-3]
["Benzo(k)fluoranthene",null,"6-8hrs","None set µg/m3",null,1.9E-3,"N/A",1.9E-3,1.6000000000000001E-3,"N/A",1.6000000000000001E-3,1.75E-3]
["Cholanthrene",null,"6-8hrs","None set µg/m3",null,1.9E-3,"N/A",1.9E-3,1.6000000000000001E-3,"N/A",1.6000000000000001E-3,1.75E-3]
["Chrysene",null,"6-8hrs","None set µg/m3",null,1.9E-3,"N/A",1.9E-3,1.6000000000000001E-3,"N/A",1.6000000000000001E-3,1.75E-3]
["Cyclopenta(cd)pyrene",null,"6-8hrs","None set µg/m3",null,1.9E-3,"N/A",1.9E-3,1.6000000000000001E-3,"N/A",1.6000000000000001E-3,1.75E-3]
["Dibenzo(ai)pyrene",null,"6-8hrs","None set µg/m3",null,1.9E-3,"N/A",1.9E-3,1.6000000000000001E-3,"N/A",1.6000000000000001E-3,1.75E-3]
["Dibenzo(ah)anthracene",null,"6-8hrs","None set µg/m3",null,1.9E-3,"N/A",1.9E-3,1.6000000000000001E-3,"N/A",1.6000000000000001E-3,1.75E-3]
["Fluoranthene",null,"6-8hrs","None set µg/m3",null,3.4000000000000002E-2,"N/A",3.4000000000000002E-2,0.04,"N/A",0.04,3.7000000000000005E-2]
["Indeno(123-cd) pyrene",null,"6-8hrs","None set µg/m3",null,1.9E-3,"N/A",1.9E-3,1.6000000000000001E-3,"N/A",1.6000000000000001E-3,1.75E-3]
["Naphthalene",null,"6-8hrs","None set µg/m3",null,0.1,"N/A",0.1,0.13,"N/A",0.13,0.115]
["Comments :"]
["Specific individual poly-cyclic aromatic hydrocarbons (PAHs) monitoring is completed annually as per Table S3.1 in Environmental Permit EPR/JP3135DK/V006"]

{"sheet":"Air (CEMS)","index":14,"n_rows":29,"n_cols":16,"rows_kept":29,"cut":false,"hidden":false,"merged":[[5,0,8,12],[26,0,26,12],[28,0,29,12],[10,0,10,12],[11,0,12,0],[11,2,12,2],[11,1,12,1],[11,3,11,4],[11,5,11,6],[11,7,11,8],[11,9,11,10],[11,11,11,12]]}
[{"$f":"+'Cover Page'!$B$29","v":"Annual Performance Report 2023"},null,null,null,null,null,null,null,{"$f":"+'Cover Page'!$B$33","v":"Kemsley Generating Station"}]
[]
["Emissions to Air (continously monitored)"]
[null,null,null,null,null,null,null,null,null,null,null,null,null,null,null,"Notes:"]
["Summary of monitoring undertaken, standards used and compliance",null,null,null,null,null,null,null,null,null,null,null,null,null,null,"Template may require adjustment for any bespoke monitoring requirements of permit"]
["For 2023, the facility achieve 100% compliance with the limits set in the Environmental Permit for all continiuously monitored determinands.\n\nHCl, SO2, NOx, TOC and CO all have limits set out in the Environmental Permit; these determinands are continuously monitored by CEMS's in compliance with EN 14181. NH3, O2, CO2 and Water Vapour and are also continuously monitored by the CEMS's.\n\nAll instruments are QAL1 compliant and undergo annual checks either in the form of a QAL2 or an Annual Surveillance Test compliant with the requirements of EN 14181.\n",null,null,null,null,null,null,null,null,null,null,null,null,null,null,"Report to 2 decimal places, i.e. xx.xx%"]
[]
[]
[]
[]
["Results of emissions to air that are continuously monitored (maximum and average values for each line)"]
["Substance","Reference Period","Emission Limit Value","A1",null,"A2",null,"A3",null,"A4",null,"A5"]
[null,null,null,"Max.","Avg.","Max.","Avg.","Max.","Avg.","Max.","Avg.","Max.","Avg."]
["Oxides of nitrogen","Daily mean","200 mg/m3 ",{"$f":"NOx!O19","v":187.14},{"$f":"NOx!N19","v":169.48333333333332},{"$f":"NOx!O34","v":186.01},{"$f":"NOx!N34","v":169.61416666666668},"-","-","-","-","-","-"]
[null,"½ hourly mean","400 mg/m3 ",{"$f":"NOx!M19","v":348.2},{"$f":"NOx!L19","v":169.58249999999998},{"$f":"NOx!M34","v":244.7},{"$f":"NOx!L34","v":169.67166666666665},"-","-","-","-","-","-"]
["Particulates","Daily mean","10 mg/m3",{"$f":"Particulates!O19","v":0.7},{"$f":"Particulates!N19","v":0.15083333333333335},{"$f":"Particulates!O34","v":0.77},{"$f":"Particulates!N34","v":0.12916666666666668},"-","-","-","-","-","-"]
[null,"½ hourly mean","30 mg/m3 ",{"$f":"Particulates!M19","v":3.02},{"$f":"Particulates!L19","v":0.15000000000000002},{"$f":"Particulates!M34","v":1.74},{"$f":"Particulates!L34","v":0.12916666666666668},"-","-","-","-","-","-"]
["Total Organic Carbon ","Daily mean","10 mg/m3 ",{"$f":"TOC!O19","v":0.52},{"$f":"TOC!N19","v":0.23416666666666666},{"$f":"TOC!O34","v":0.52},{"$f":"TOC!N34","v":0.27166666666666667},"-","-","-","-","-","-"]
[null,"½ hourly mean","20 mg/m3 ",{"$f":"TOC!M19","v":7.76},{"$f":"TOC!L19","v":0.24083333333333334},{"$f":"TOC!M34","v":3.83},{"$f":"TOC!L34","v":0.27416666666666667},"-","-","-","-","-","-"]
["Hydrogen chloride ","Daily mean","10 mg/m3 ",{"$f":"HCl!O19","v":7.85},{"$f":"HCl!N19","v":4.6116666666666655},{"$f":"HCl!O34","v":8.43},{"$f":"HCl!M34","v":15.75},"-","-","-","-","-","-"]
[null,"½ hourly mean","60 mg/m3 ",{"$f":"HCl!M19","v":13.59},{"$f":"HCl!L19","v":4.5891666666666673},{"$f":"HCl!N34","v":5.1266666666666678},{"$f":"HCl!L34","v":5.1050000000000004},"-","-","-","-","-","-"]
["Sulphur dioxide","Daily mean","50 mg/m3 ",{"$f":"'SO2'!O19","v":23.12},{"$f":"'SO2'!N19","v":4.7166666666666659},{"$f":"'SO2'!O34","v":29.92},{"$f":"'SO2'!N34","v":4.2450000000000001},"-","-","-","-","-","-"]
[null,"½ hourly mean","200 mg/m3 ",{"$f":"'SO2'!M19","v":157.11000000000001},{"$f":"'SO2'!L19","v":4.9816666666666665},{"$f":"'SO2'!M34","v":155.99},{"$f":"'SO2'!L34","v":4.3325000000000005},"-","-","-","-","-","-"]
["Carbon monoxide ","Daily mean","50 mg/m3 ",{"$f":"'CO 95% 10 min'!Q19","v":7.96},{"$f":"'CO 95% 10 min'!P19","v":3.9891666666666672},{"$f":"'CO 95% 10 min'!Q34","v":8.77},{"$f":"'CO 95% 10 min'!O34","v":567.21},"-","-","-","-","-","-"]
[null,"95%ile 10-min avg *","150 mg/m3 *",{"$f":"'CO 95% 10 min'!O19","v":612.05999999999995},{"$f":"'CO 95% 10 min'!M19","v":14.28},{"$f":"'CO 95% 10 min'!P34","v":2.9733333333333332},{"$f":"'CO 95% 10 min'!M34","v":10.65},"-","-","-","-","-","-"]
[" Ammonia","Daily mean","No limit set",{"$f":"'NH3'!O19","v":5.34},{"$f":"'NH3'!N19","v":0.65083333333333326},{"$f":"'NH3'!O34","v":0.73},{"$f":"'NH3'!N34","v":0.16250000000000001},"-","-","-","-","-","-"]
["* = delete or amend as appropriate"]
["Comments :"]
["K3 facility operates 2 lines (2 boilers and 2 emission points) with 1 common turbine."]

{"sheet":"HCl","index":15,"n_rows":79,"n_cols":17,"rows_kept":79,"cut":false,"hidden":false,"merged":[[12,16,15,18],[51,9,63,9],[66,9,78,9],[4,9,4,14],[4,1,4,3],[4,4,4,6],[48,0,51,6],[47,0,47,6],[6,9,18,9],[21,9,33,9],[36,9,48,9],[3,16,7,18],[9,16,11,18]]}
[{"$f":"+'Cover Page'!$B$29","v":"Annual Performance Report 2023"},null,null,null,{"$f":"+'Cover Page'!$B$33","v":"Kemsley Generating Station"}]
[]
["Monitoring of Hydrogen Chloride emissions",null,null,"Whole Installation",null,null,"See  Notes in Cell Q3",null,null,{"$f":"+A3","v":"Monitoring of Hydrogen Chloride emissions"},null,null,null,"Per Combustion Line",null,null,"Notes:"]
[null,null,null,null,null,null,null,null,null,null,null,null,null,null,null,null,"User to add logic to complete Whole installation, Table A5:G18. From the data in Per Combustion Line, Table J6:O79, subject to No. of lines installed"]
["mg/Nm3","1/2 Hourly Reference Periods",null,null,"Daily Reference Periods"]
[{"$f":"+'Cover Page'!C39","v":2023},"1/2 hourly HCl ELV","Monthly 1/2 hourly mean","Highest 1/2 hourly maximum","Daily HCl ELV","Monthly daily mean","Highest daily maximum",null,null,{"$f":"+A6","v":2023},"mg/Nm3","Monthly 1/2 hourly mean","Monthly 1/2 hourly maximum","Monthly daily mean","Monthly daily maximum"]
["Jan",60,3.22,9.9499999999999993,10,3.22,4.79,null,null,"A1","Jan",3.04,9.9499999999999993,3.04,4.28]
["Feb",60,3.24,10.67,10,3.26,4.8899999999999997,null,null,null,"Feb",2.91,10.67,2.92,4.62]
["Mar",60,3.32,11.02,10,3.34,4.96,null,null,null,"Mar",3.27,11.02,3.32,4.96,null,"Whole Installation table A5:G18:"]
["Apr",60,5.32,14.59,10,5.35,7.85,null,null,null,"Apr",5.5,11.35,5.55,7.85,null,"Mean: for 1/2 hourly and daily periods calculate mean of values across all operational combustion lines for the month"]
["May",60,6.38,11.62,10,6.38,8.43,null,null,null,"May",5.79,11.62,5.73,7.77]
["Jun",60,5.66,13.46,10,5.61,7.85,null,null,null,"Jun",5.17,13,5.17,7.78]
["Jul",60,5.72,13.46,10,5.8,7.85,null,null,null,"Jul",5.46,13.46,5.51,7.85,null,"Maximum: for 1/2 hourly and daily periods use the highest value across all operational combustion lines for the month"]
["Aug",60,6.01,15.75,10,6.06,8.36,null,null,null,"Aug",5.21,13.59,5.27,7.65]
["Sep",60,5.94,12.93,10,5.96,7.82,null,null,null,"Sep",5.56,10.79,5.52,6.88]
["Oct",60,4.91,12.66,10,4.97,7.03,null,null,null,"Oct",4.67,12.66,4.7300000000000004,7.03]
["Nov",60,3.94,13.32,10,3.95,6.85,null,null,null,"Nov",4.1100000000000003,10.029999999999999,4.1399999999999997,6.85]
["Dec",60,4.58,11.94,10,4.6399999999999997,6.73,null,null,null,"Dec",4.38,10.65,4.4400000000000004,6.58]
[null,null,null,null,null,null,null,null,null,null,"Annual",{"$f":"AVERAGE(L7:L18)","v":4.5891666666666673},{"$f":"MAX(M7:M18)","v":13.59},{"$f":"AVERAGE(N7:N18)","v":4.6116666666666655},{"$f":"MAX(O7:O18)","v":7.85}]
[]
[null,null,null,null,null,null,null,null,null,{"$f":"+A6","v":2023},"mg/Nm3","Monthly 1/2 hourly mean","Monthly 1/2 hourly maximum","Monthly daily mean","Monthly daily maximum"]
[null,null,null,null,null,null,null,null,null,"A2","Jan",3.41,9.23,3.41,4.79]
[null,null,null,null,null,null,null,null,null,null,"Feb",3.53,10.32,3.53,4.8899999999999997]
[null,null,null,null,null,null,null,null,null,null,"Mar",3.34,10.220000000000001,3.34,4.38]
[null,null,null,null,null,null,null,null,null,null,"Apr",5.17,14.59,5.17,7.84]
[null,null,null,null,null,null,null,null,null,null,"May",6.94,10.66,6.99,8.43]
[null,null,null,null,null,null,null,null,null,null,"Jun",6.25,13.46,6.21,7.85]
[null,null,null,null,null,null,null,null,null,null,"Jul",6.03,12.16,6.14,7.58]
[null,null,null,null,null,null,null,null,null,null,"Aug",6.67,15.75,6.67,8.36]
[null,null,null,null,null,null,null,null,null,null,"Sep",6.15,12.93,6.21,7.82]
[null,null,null,null,null,null,null,null,null,null,"Oct",5.2,10.3,5.24,6.53]
[null,null,null,null,null,null,null,null,null,null,"Nov",3.78,13.32,3.77,5.22]
[null,null,null,null,null,null,null,null,null,null,"Dec",4.79,11.94,4.84,6.73]
[null,null,null,null,null,null,null,null,null,null,"Annual",{"$f":"AVERAGE(L22:L33)","v":5.1050000000000004},{"$f":"MAX(M22:M33)","v":15.75},{"$f":"AVERAGE(N22:N33)","v":5.1266666666666678},{"$f":"MAX(O22:O33)","v":8.43}]
[]
[null,null,null,null,null,null,null,null,null,{"$f":"+A6","v":2023},"mg/Nm3","Monthly 1/2 hourly mean","Monthly 1/2 hourly maximum","Monthly daily mean","Monthly daily maximum"]
[null,null,null,null,null,null,null,null,null,"A3","Jan"]
[null,null,null,null,null,null,null,null,null,null,"Feb"]
[null,null,null,null,null,null,null,null,null,null,"Mar"]
[null,null,null,null,null,null,null,null,null,null,"Apr"]
[null,null,null,null,null,null,null,null,null,null,"May"]
[null,null,null,null,null,null,null,null,null,null,"Jun"]
[null,null,null,null,null,null,null,null,null,null,"Jul"]
[null,null,null,null,null,null,null,null,null,null,"Aug"]
[null,null,null,null,null,null,null,null,null,null,"Sep"]
[null,null,null,null,null,null,null,null,null,null,"Oct"]
[null,null,null,null,null,null,null,null,null,null,"Nov"]
["Comments :",null,null,null,null,null,null,null,null,null,"Dec"]
["K3 facility operates 2 lines (2 boilers and 2 emission points) with 1 common turbine.",null,null,null,null,null,null,null,null,null,"Annual",{"$f":"AVERAGE(L37:L48)","v":{"$error":"#DIV/0!"}},{"$f":"MAX(M37:M48)","v":0},{"$f":"AVERAGE(N37:N48)","v":{"$error":"#DIV/0!"}},{"$f":"MAX(O37:O48)","v":0}]
[]
[null,null,null,null,null,null,null,null,null,{"$f":"+A6","v":2023},"mg/Nm3","Monthly 1/2 hourly mean","Monthly 1/2 hourly maximum","Monthly daily mean","Monthly daily maximum"]
[null,null,null,null,null,null,null,null,null,"A4","Jan"]
[null,null,null,null,null,null,null,null,null,null,"Feb"]
[null,null,null,null,null,null,null,null,null,null,"Mar"]
[null,null,null,null,null,null,null,null,null,null,"Apr"]
[null,null,null,null,null,null,null,null,null,null,"May"]
[null,null,null,null,null,null,null,null,null,null,"Jun"]
[null,null,null,null,null,null,null,null,null,null,"Jul"]
[null,null,null,null,null,null,null,null,null,null,"Aug"]
[null,null,null,null,null,null,null,null,null,null,"Sep"]
[null,null,null,null,null,null,null,null,null,null,"Oct"]
[null,null,null,null,null,null,null,null,null,null,"Nov"]
[null,null,null,null,null,null,null,null,null,null,"Dec"]
[null,null,null,null,null,null,null,null,null,null,"Annual",{"$f":"AVERAGE(L52:L63)","v":{"$error":"#DIV/0!"}},{"$f":"MAX(M52:M63)","v":0},{"$f":"AVERAGE(N52:N63)","v":{"$error":"#DIV/0!"}},{"$f":"MAX(O52:O63)","v":0}]
[]
[null,null,null,null,null,null,null,null,null,{"$f":"+A6","v":2023},"mg/Nm3","Monthly 1/2 hourly mean","Monthly 1/2 hourly maximum","Monthly daily mean","Monthly daily maximum"]
[null,null,null,null,null,null,null,null,null,"A5","Jan"]
[null,null,null,null,null,null,null,null,null,null,"Feb"]
[null,null,null,null,null,null,null,null,null,null,"Mar"]
[null,null,null,null,null,null,null,null,null,null,"Apr"]
[null,null,null,null,null,null,null,null,null,null,"May"]
[null,null,null,null,null,null,null,null,null,null,"Jun"]
[null,null,null,null,null,null,null,null,null,null,"Jul"]
[null,null,null,null,null,null,null,null,null,null,"Aug"]
[null,null,null,null,null,null,null,null,null,null,"Sep"]
[null,null,null,null,null,null,null,null,null,null,"Oct"]
[null,null,null,null,null,null,null,null,null,null,"Nov"]
[null,null,null,null,null,null,null,null,null,null,"Dec"]
[null,null,null,null,null,null,null,null,null,null,"Annual",{"$f":"AVERAGE(L67:L78)","v":{"$error":"#DIV/0!"}},{"$f":"MAX(M67:M78)","v":0},{"$f":"AVERAGE(N67:N78)","v":{"$error":"#DIV/0!"}},{"$f":"MAX(O67:O78)","v":0}]

{"sheet":"SO2","index":16,"n_rows":79,"n_cols":17,"rows_kept":79,"cut":false,"hidden":false,"merged":[[3,16,7,18],[9,16,11,18],[12,16,15,18],[66,9,78,9],[4,1,4,3],[4,4,4,6],[4,9,4,14],[6,9,18,9],[21,9,33,9],[36,9,48,9],[47,0,47,6],[48,0,51,6],[51,9,63,9]]}
[{"$f":"+'Cover Page'!$B$29","v":"Annual Performance Report 2023"},null,null,null,{"$f":"+'Cover Page'!$B$33","v":"Kemsley Generating Station"}]
[]
["Monitoring of Sulphur dioxide emissions",null,null,"Whole Installation",null,null,"See  Notes in Cell Q3",null,null,{"$f":"+A3","v":"Monitoring of Sulphur dioxide emissions"},null,null,null,"Per Combustion Line",null,null,"Notes:"]
[null,null,null,null,null,null,null,null,null,null,null,null,null,null,null,null,"User to add logic to complete Whole installation, Table A5:G18. From the data in Per Combustion Line, Table J6:O79, subject to No. of lines installed"]
["mg/Nm3","1/2 Hourly Reference Periods",null,null,"Daily Reference Periods"]
[{"$f":"+'Cover Page'!C39","v":2023},"1/2 hourly SO2 ELV","Monthly 1/2 hourly mean","Highest 1/2 hourly maximum","Daily SO2 ELV","Monthly daily mean","Highest daily maximum",null,null,{"$f":"+A6","v":2023},"mg/Nm3","Monthly 1/2 hourly mean","Monthly 1/2 hourly maximum","Monthly daily mean","Monthly daily maximum"]
["Jan",200,1.4,106.98,50,1.4,8.5399999999999991,null,null,"A1","Jan",1,38.380000000000003,1,8.5399999999999991]
["Feb",200,2.1,78.77,50,1.85,11.2,null,null,null,"Feb",1.34,78.77,0.74,11.2]
["Mar",200,3.65,78.44,50,3.67,15.45,null,null,null,"Mar",4.3600000000000003,78.44,4.26,15.45,null,"Whole Installation table A5:G18:"]
["Apr",200,5.27,42.29,50,5.24,11.74,null,null,null,"Apr",5.64,40.46,5.58,11.74,null,"Mean: for 1/2 hourly and daily periods calculate mean of values across all operational combustion lines for the month"]
["May",200,6.63,68.349999999999994,50,6.51,19.55,null,null,null,"May",7.87,68.349999999999994,7.6,19.55]
["Jun",200,5.95,119.84,50,5.83,15.64,null,null,null,"Jun",5.93,119.84,5.93,15.64]
["Jul",200,6,64.540000000000006,50,5.77,23.12,null,null,null,"Jul",7.81,64.540000000000006,7.41,23.12,null,"Maximum: for 1/2 hourly and daily periods use the highest value across all operational combustion lines for the month"]
["Aug",200,4.76,81.66,50,4.1900000000000004,12.78,null,null,null,"Aug",6.72,81.66,5.55,12.78]
["Sep",200,5.14,155.99,50,4.66,15.59,null,null,null,"Sep",3.17,39.28,2.79,4.8]
["Oct",200,4.55,53.11,50,4.53,9.84,null,null,null,"Oct",4.28,53.11,4.46,9.49]
["Nov",200,6.64,99.61,50,6.6,29.92,null,null,null,"Nov",6.64,78.98,6.36,20.57]
["Dec",200,3.95,157.11000000000001,50,3.81,20.2,null,null,null,"Dec",5.0199999999999996,157.11000000000001,4.92,20.2]
[null,null,null,null,null,null,null,null,null,null,"Annual",{"$f":"AVERAGE(L7:L18)","v":4.9816666666666665},{"$f":"MAX(M7:M18)","v":157.11000000000001},{"$f":"AVERAGE(N7:N18)","v":4.7166666666666659},{"$f":"MAX(O7:O18)","v":23.12}]
[]
[null,null,null,null,null,null,null,null,null,{"$f":"+A6","v":2023},"mg/Nm3","Monthly 1/2 hourly mean","Monthly 1/2 hourly maximum","Monthly daily mean","Monthly daily maximum"]
[null,null,null,null,null,null,null,null,null,"A2","Jan",1.8,106.98,1.8,7.05]
[null,null,null,null,null,null,null,null,null,null,"Feb",2.76,43.66,2.76,8.94]
[null,null,null,null,null,null,null,null,null,null,"Mar",3.37,38.33,3.46,7.04]
[null,null,null,null,null,null,null,null,null,null,"Apr",4.9400000000000004,42.29,4.9400000000000004,10.3]
[null,null,null,null,null,null,null,null,null,null,"May",5.47,36.65,5.49,8.8000000000000007]
[null,null,null,null,null,null,null,null,null,null,"Jun",5.98,58.09,5.7,15.36]
[null,null,null,null,null,null,null,null,null,null,"Jul",3.94,55.93,3.86,11.73]
[null,null,null,null,null,null,null,null,null,null,"Aug",3.13,50.14,3.13,6.91]
[null,null,null,null,null,null,null,null,null,null,"Sep",6.23,155.99,5.72,15.59]
[null,null,null,null,null,null,null,null,null,null,"Oct",4.87,41.11,4.6100000000000003,9.84]
[null,null,null,null,null,null,null,null,null,null,"Nov",6.65,99.61,6.82,29.92]
[null,null,null,null,null,null,null,null,null,null,"Dec",2.85,81.83,2.65,16.329999999999998]
[null,null,null,null,null,null,null,null,null,null,"Annual",{"$f":"AVERAGE(L22:L33)","v":4.3325000000000005},{"$f":"MAX(M22:M33)","v":155.99},{"$f":"AVERAGE(N22:N33)","v":4.2450000000000001},{"$f":"MAX(O22:O33)","v":29.92}]
[]
[null,null,null,null,null,null,null,null,null,{"$f":"+A6","v":2023},"mg/Nm3","Monthly 1/2 hourly mean","Monthly 1/2 hourly maximum","Monthly daily mean","Monthly daily maximum"]
[null,null,null,null,null,null,null,null,null,"A3","Jan"]
[null,null,null,null,null,null,null,null,null,null,"Feb"]
[null,null,null,null,null,null,null,null,null,null,"Mar"]
[null,null,null,null,null,null,null,null,null,null,"Apr"]
[null,null,null,null,null,null,null,null,null,null,"May"]
[null,null,null,null,null,null,null,null,null,null,"Jun"]
[null,null,null,null,null,null,null,null,null,null,"Jul"]
[null,null,null,null,null,null,null,null,null,null,"Aug"]
[null,null,null,null,null,null,null,null,null,null,"Sep"]
[null,null,null,null,null,null,null,null,null,null,"Oct"]
[null,null,null,null,null,null,null,null,null,null,"Nov"]
["Comments :",null,null,null,null,null,null,null,null,null,"Dec"]
["K3 facility operates 2 lines (2 boilers and 2 emission points) with 1 common turbine.",null,null,null,null,null,null,null,null,null,"Annual",{"$f":"AVERAGE(L37:L48)","v":{"$error":"#DIV/0!"}},{"$f":"MAX(M37:M48)","v":0},{"$f":"AVERAGE(N37:N48)","v":{"$error":"#DIV/0!"}},{"$f":"MAX(O37:O48)","v":0}]
[]
[null,null,null,null,null,null,null,null,null,{"$f":"+A6","v":2023},"mg/Nm3","Monthly 1/2 hourly mean","Monthly 1/2 hourly maximum","Monthly daily mean","Monthly daily maximum"]
[null,null,null,null,null,null,null,null,null,"A4","Jan"]
[null,null,null,null,null,null,null,null,null,null,"Feb"]
[null,null,null,null,null,null,null,null,null,null,"Mar"]
[null,null,null,null,null,null,null,null,null,null,"Apr"]
[null,null,null,null,null,null,null,null,null,null,"May"]
[null,null,null,null,null,null,null,null,null,null,"Jun"]
[null,null,null,null,null,null,null,null,null,null,"Jul"]
[null,null,null,null,null,null,null,null,null,null,"Aug"]
[null,null,null,null,null,null,null,null,null,null,"Sep"]
[null,null,null,null,null,null,null,null,null,null,"Oct"]
[null,null,null,null,null,null,null,null,null,null,"Nov"]
[null,null,null,null,null,null,null,null,null,null,"Dec"]
[null,null,null,null,null,null,null,null,null,null,"Annual",{"$f":"AVERAGE(L52:L63)","v":{"$error":"#DIV/0!"}},{"$f":"MAX(M52:M63)","v":0},{"$f":"AVERAGE(N52:N63)","v":{"$error":"#DIV/0!"}},{"$f":"MAX(O52:O63)","v":0}]
[]
[null,null,null,null,null,null,null,null,null,{"$f":"+A6","v":2023},"mg/Nm3","Monthly 1/2 hourly mean","Monthly 1/2 hourly maximum","Monthly daily mean","Monthly daily maximum"]
[null,null,null,null,null,null,null,null,null,"A5","Jan"]
[null,null,null,null,null,null,null,null,null,null,"Feb"]
[null,null,null,null,null,null,null,null,null,null,"Mar"]
[null,null,null,null,null,null,null,null,null,null,"Apr"]
[null,null,null,null,null,null,null,null,null,null,"May"]
[null,null,null,null,null,null,null,null,null,null,"Jun"]
[null,null,null,null,null,null,null,null,null,null,"Jul"]
[null,null,null,null,null,null,null,null,null,null,"Aug"]
[null,null,null,null,null,null,null,null,null,null,"Sep"]
[null,null,null,null,null,null,null,null,null,null,"Oct"]
[null,null,null,null,null,null,null,null,null,null,"Nov"]
[null,null,null,null,null,null,null,null,null,null,"Dec"]
[null,null,null,null,null,null,null,null,null,null,"Annual",{"$f":"AVERAGE(L67:L78)","v":{"$error":"#DIV/0!"}},{"$f":"MAX(M67:M78)","v":0},{"$f":"AVERAGE(N67:N78)","v":{"$error":"#DIV/0!"}},{"$f":"MAX(O67:O78)","v":0}]

{"sheet":"NOx","index":17,"n_rows":79,"n_cols":17,"rows_kept":79,"cut":false,"hidden":false,"merged":[[3,16,7,18],[9,16,11,18],[12,16,15,18],[66,9,78,9],[4,1,4,3],[4,4,4,6],[4,9,4,14],[6,9,18,9],[21,9,33,9],[36,9,48,9],[47,0,47,6],[48,0,51,6],[51,9,63,9]]}
[{"$f":"+'Cover Page'!$B$29","v":"Annual Performance Report 2023"},null,null,null,{"$f":"+'Cover Page'!$B$33","v":"Kemsley Generating Station"}]
[]
["Monitoring of Oxides of Nitrogen emissions",null,null,"Whole Installation",null,null,"See  Notes in Cell Q3",null,null,{"$f":"+A3","v":"Monitoring of Oxides of Nitrogen emissions"},null,null,null,"Per Combustion Line",null,null,"Notes:"]
[null,null,null,null,null,null,null,null,null,null,null,null,null,null,null,null,"User to add logic to complete Whole installation, Table A5:G18. From the data in Per Combustion Line, Table J6:O79, subject to No. of lines installed"]
["mg/Nm3","1/2 Hourly Reference Periods",null,null,"Daily Reference Periods"]
[{"$f":"+'Cover Page'!C39","v":2023},"1/2 hourly NOx ELV","Monthly 1/2 hourly mean","Highest 1/2 hourly maximum","Daily NOx ELV","Monthly daily mean","Highest daily maximum",null,null,{"$f":"+A6","v":2023},"mg/Nm3","Monthly 1/2 hourly mean","Monthly 1/2 hourly maximum","Monthly daily mean","Monthly daily maximum"]
["Jan",400,174.82,262.92,200,174.82,177.14,null,null,"A1","Jan",175.32,262.92,175.32,177.14]
["Feb",400,174.75,201.21,200,174.74,175.64,null,null,null,"Feb",175.19,198.6,175.19,175.58]
["Mar",400,175.36,227.6,200,175.37,186.01,null,null,null,"Mar",175.17,196.36,175.18,175.74,null,"Whole Installation table A5:G18:"]
["Apr",400,175.38,210.1,200,175.38,178.16,null,null,null,"Apr",175.55,210.1,175.55,178.16,null,"Mean: for 1/2 hourly and daily periods calculate mean of values across all operational combustion lines for the month"]
["May",400,175.22,220.42,200,175.21,177.03,null,null,null,"May",175.25,220.42,175.24,177.03]
["Jun",400,174.28,222.4,200,174.35,187.14,null,null,null,"Jun",176.25,222.4,176.25,187.14]
["Jul",400,169.17,244.7,200,169.26,176.92,null,null,null,"Jul",173.79,210.03,173.75,175.7,null,"Maximum: for 1/2 hourly and daily periods use the highest value across all operational combustion lines for the month"]
["Aug",400,162.09,348.2,200,162.03,177.43,null,null,null,"Aug",146.51,348.2,145.29,177.43]
["Sep",400,168.52,206.77,200,168.12,176.05,null,null,null,"Sep",174.99,206.77,174.99,176.05]
["Oct",400,161.83000000000001,278.89,200,161.83000000000001,163.88,null,null,null,"Oct",161.87,278.89,161.88,163.88]
["Nov",400,161.97999999999999,209.98,200,161.97999999999999,167.44,null,null,null,"Nov",162.32,209.98,162.33000000000001,167.44]
["Dec",400,162.59,191.29,200,162.63,169.62,null,null,null,"Dec",162.78,191.29,162.83000000000001,169.62]
[null,null,null,null,null,null,null,null,null,null,"Annual",{"$f":"AVERAGE(L7:L18)","v":169.58249999999998},{"$f":"MAX(M7:M18)","v":348.2},{"$f":"AVERAGE(N7:N18)","v":169.48333333333332},{"$f":"MAX(O7:O18)","v":187.14}]
[]
[null,null,null,null,null,null,null,null,null,{"$f":"+A6","v":2023},"mg/Nm3","Monthly 1/2 hourly mean","Monthly 1/2 hourly maximum","Monthly daily mean","Monthly daily maximum"]
[null,null,null,null,null,null,null,null,null,"A2","Jan",174.31,197.14,174.31,175.77]
[null,null,null,null,null,null,null,null,null,null,"Feb",174.37,201.21,174.37,175.64]
[null,null,null,null,null,null,null,null,null,null,"Mar",175.44,227.6,175.43,186.01]
[null,null,null,null,null,null,null,null,null,null,"Apr",175.23,197.19,175.23,176.01]
[null,null,null,null,null,null,null,null,null,null,"May",175.2,195.83,175.19,175.42]
[null,null,null,null,null,null,null,null,null,null,"Jun",171.83,216.67,171.76,175.93]
[null,null,null,null,null,null,null,null,null,null,"Jul",163.91,244.7,164.02,176.92]
[null,null,null,null,null,null,null,null,null,null,"Aug",175,215.95,175,176.87]
[null,null,null,null,null,null,null,null,null,null,"Sep",164.93,200.87,164.2,175.93]
[null,null,null,null,null,null,null,null,null,null,"Oct",161.79,190.87,161.78,163.31]
[null,null,null,null,null,null,null,null,null,null,"Nov",161.66,183.35,161.66,162.49]
[null,null,null,null,null,null,null,null,null,null,"Dec",162.38999999999999,182.16,162.41999999999999,169.38]
[null,null,null,null,null,null,null,null,null,null,"Annual",{"$f":"AVERAGE(L22:L33)","v":169.67166666666665},{"$f":"MAX(M22:M33)","v":244.7},{"$f":"AVERAGE(N22:N33)","v":169.61416666666668},{"$f":"MAX(O22:O33)","v":186.01}]
[]
[null,null,null,null,null,null,null,null,null,{"$f":"+A6","v":2023},"mg/Nm3","Monthly 1/2 hourly mean","Monthly 1/2 hourly maximum","Monthly daily mean","Monthly daily maximum"]
[null,null,null,null,null,null,null,null,null,"A3","Jan"]
[null,null,null,null,null,null,null,null,null,null,"Feb"]
[null,null,null,null,null,null,null,null,null,null,"Mar"]
[null,null,null,null,null,null,null,null,null,null,"Apr"]
[null,null,null,null,null,null,null,null,null,null,"May"]
[null,null,null,null,null,null,null,null,null,null,"Jun"]
[null,null,null,null,null,null,null,null,null,null,"Jul"]
[null,null,null,null,null,null,null,null,null,null,"Aug"]
[null,null,null,null,null,null,null,null,null,null,"Sep"]
[null,null,null,null,null,null,null,null,null,null,"Oct"]
[null,null,null,null,null,null,null,null,null,null,"Nov"]
["Comments :",null,null,null,null,null,null,null,null,null,"Dec"]
["K3 facility operates 2 lines (2 boilers and 2 emission points) with 1 common turbine.",null,null,null,null,null,null,null,null,null,"Annual",{"$f":"AVERAGE(L37:L48)","v":{"$error":"#DIV/0!"}},{"$f":"MAX(M37:M48)","v":0},{"$f":"AVERAGE(N37:N48)","v":{"$error":"#DIV/0!"}},{"$f":"MAX(O37:O48)","v":0}]
[]
[null,null,null,null,null,null,null,null,null,{"$f":"+A6","v":2023},"mg/Nm3","Monthly 1/2 hourly mean","Monthly 1/2 hourly maximum","Monthly daily mean","Monthly daily maximum"]
[null,null,null,null,null,null,null,null,null,"A4","Jan"]
[null,null,null,null,null,null,null,null,null,null,"Feb"]
[null,null,null,null,null,null,null,null,null,null,"Mar"]
[null,null,null,null,null,null,null,null,null,null,"Apr"]
[null,null,null,null,null,null,null,null,null,null,"May"]
[null,null,null,null,null,null,null,null,null,null,"Jun"]
[null,null,null,null,null,null,null,null,null,null,"Jul"]
[null,null,null,null,null,null,null,null,null,null,"Aug"]
[null,null,null,null,null,null,null,null,null,null,"Sep"]
[null,null,null,null,null,null,null,null,null,null,"Oct"]
[null,null,null,null,null,null,null,null,null,null,"Nov"]
[null,null,null,null,null,null,null,null,null,null,"Dec"]
[null,null,null,null,null,null,null,null,null,null,"Annual",{"$f":"AVERAGE(L52:L63)","v":{"$error":"#DIV/0!"}},{"$f":"MAX(M52:M63)","v":0},{"$f":"AVERAGE(N52:N63)","v":{"$error":"#DIV/0!"}},{"$f":"MAX(O52:O63)","v":0}]
[]
[null,null,null,null,null,null,null,null,null,{"$f":"+A6","v":2023},"mg/Nm3","Monthly 1/2 hourly mean","Monthly 1/2 hourly maximum","Monthly daily mean","Monthly daily maximum"]
[null,null,null,null,null,null,null,null,null,"A5","Jan"]
[null,null,null,null,null,null,null,null,null,null,"Feb"]
[null,null,null,null,null,null,null,null,null,null,"Mar"]
[null,null,null,null,null,null,null,null,null,null,"Apr"]
[null,null,null,null,null,null,null,null,null,null,"May"]
[null,null,null,null,null,null,null,null,null,null,"Jun"]
[null,null,null,null,null,null,null,null,null,null,"Jul"]
[null,null,null,null,null,null,null,null,null,null,"Aug"]
[null,null,null,null,null,null,null,null,null,null,"Sep"]
[null,null,null,null,null,null,null,null,null,null,"Oct"]
[null,null,null,null,null,null,null,null,null,null,"Nov"]
[null,null,null,null,null,null,null,null,null,null,"Dec"]
[null,null,null,null,null,null,null,null,null,null,"Annual",{"$f":"AVERAGE(L67:L78)","v":{"$error":"#DIV/0!"}},{"$f":"MAX(M67:M78)","v":0},{"$f":"AVERAGE(N67:N78)","v":{"$error":"#DIV/0!"}},{"$f":"MAX(O67:O78)","v":0}]

{"sheet":"TOC","index":18,"n_rows":79,"n_cols":17,"rows_kept":79,"cut":false,"hidden":false,"merged":[[3,16,7,18],[9,16,11,18],[12,16,15,18],[66,9,78,9],[4,1,4,3],[4,4,4,6],[4,9,4,14],[6,9,18,9],[21,9,33,9],[36,9,48,9],[47,0,47,6],[48,0,51,6],[51,9,63,9]]}
[{"$f":"+'Cover Page'!$B$29","v":"Annual Performance Report 2023"},null,null,null,{"$f":"+'Cover Page'!$B$33","v":"Kemsley Generating Station"}]
[]
["Monitoring of Total organic carbon emissions",null,null,"Whole Installation",null,null,"See  Notes in Cell Q3",null,null,{"$f":"+A3","v":"Monitoring of Total organic carbon emissions"},null,null,null,"Per Combustion Line",null,null,"Notes:"]
[null,null,null,null,null,null,null,null,null,null,null,null,null,null,null,null,"User to add logic to complete Whole installation, Table A5:G18. From the data in Per Combustion Line, Table J6:O79, subject to No. of lines installed"]
["mg/Nm3","1/2 Hourly Reference Periods",null,null,"Daily Reference Periods"]
[{"$f":"+'Cover Page'!C39","v":2023},"1/2 hourly TOC ELV","Monthly 1/2 hourly mean","Highest 1/2 hourly maximum","Daily TOC ELV","Monthly daily mean","Highest daily maximum",null,null,{"$f":"+A6","v":2023},"mg/Nm3","Monthly 1/2 hourly mean","Monthly 1/2 hourly maximum","Monthly daily mean","Monthly daily maximum"]
["Jan",20,0.16,2.08,10,0.16,0.28999999999999998,null,null,"A1","Jan",0.2,1.87,0.2,0.28999999999999998]
["Feb",20,0.23,2.42,10,0.22,0.39,null,null,null,"Feb",0.23,2.37,0.22,0.38]
["Mar",20,0.31,4.7699999999999996,10,0.31,0.45,null,null,null,"Mar",0.27,4.7699999999999996,0.26,0.33,null,"Whole Installation table A5:G18:"]
["Apr",20,0.27,4.0199999999999996,10,0.27,0.39,null,null,null,"Apr",0.2,4.0199999999999996,0.2,0.3,null,"Mean: for 1/2 hourly and daily periods calculate mean of values across all operational combustion lines for the month"]
["May",20,0.27,2.58,10,0.27,0.43,null,null,null,"May",0.19,2.58,0.19,0.25]
["Jun",20,0.3,3.02,10,0.3,0.46,null,null,null,"Jun",0.23,1.86,0.23,0.31]
["Jul",20,0.28000000000000003,2.84,10,0.27,0.52,null,null,null,"Jul",0.25,1.63,0.24,0.3,null,"Maximum: for 1/2 hourly and daily periods use the highest value across all operational combustion lines for the month"]
["Aug",20,0.35,3.83,10,0.34,0.44,null,null,null,"Aug",0.31,2.74,0.28000000000000003,0.4]
["Sep",20,0.38,3.06,10,0.38,0.5,null,null,null,"Sep",0.33,3.06,0.33,0.43]
["Oct",20,0.21,2.33,10,0.21,0.37,null,null,null,"Oct",0.2,2.33,0.2,0.26]
["Nov",20,0.18,7.76,10,0.17,0.52,null,null,null,"Nov",0.25,7.76,0.23,0.52]
["Dec",20,0.17,2.39,10,0.16,0.28999999999999998,null,null,null,"Dec",0.23,1.5,0.23,0.28999999999999998]
[null,null,null,null,null,null,null,null,null,null,"Annual",{"$f":"AVERAGE(L7:L18)","v":0.24083333333333334},{"$f":"MAX(M7:M18)","v":7.76},{"$f":"AVERAGE(N7:N18)","v":0.23416666666666666},{"$f":"MAX(O7:O18)","v":0.52}]
[]
[null,null,null,null,null,null,null,null,null,{"$f":"+A6","v":2023},"mg/Nm3","Monthly 1/2 hourly mean","Monthly 1/2 hourly maximum","Monthly daily mean","Monthly daily maximum"]
[null,null,null,null,null,null,null,null,null,"A2","Jan",0.13,2.08,0.13,0.28999999999999998]
[null,null,null,null,null,null,null,null,null,null,"Feb",0.22,2.42,0.22,0.39]
[null,null,null,null,null,null,null,null,null,null,"Mar",0.33,3.16,0.33,0.45]
[null,null,null,null,null,null,null,null,null,null,"Apr",0.33,2.0099999999999998,0.33,0.39]
[null,null,null,null,null,null,null,null,null,null,"May",0.35,2.2999999999999998,0.34,0.43]
[null,null,null,null,null,null,null,null,null,null,"Jun",0.39,3.02,0.38,0.46]
[null,null,null,null,null,null,null,null,null,null,"Jul",0.32,2.84,0.31,0.52]
[null,null,null,null,null,null,null,null,null,null,"Aug",0.38,3.83,0.38,0.44]
[null,null,null,null,null,null,null,null,null,null,"Sep",0.41,2.5299999999999998,0.41,0.5]
[null,null,null,null,null,null,null,null,null,null,"Oct",0.23,1.93,0.22,0.37]
[null,null,null,null,null,null,null,null,null,null,"Nov",0.1,2.6,0.11,0.38]
[null,null,null,null,null,null,null,null,null,null,"Dec",0.1,2.39,0.1,0.14000000000000001]
[null,null,null,null,null,null,null,null,null,null,"Annual",{"$f":"AVERAGE(L22:L33)","v":0.27416666666666667},{"$f":"MAX(M22:M33)","v":3.83},{"$f":"AVERAGE(N22:N33)","v":0.27166666666666667},{"$f":"MAX(O22:O33)","v":0.52}]
[]
[null,null,null,null,null,null,null,null,null,{"$f":"+A6","v":2023},"mg/Nm3","Monthly 1/2 hourly mean","Monthly 1/2 hourly maximum","Monthly daily mean","Monthly daily maximum"]
[null,null,null,null,null,null,null,null,null,"A3","Jan"]
[null,null,null,null,null,null,null,null,null,null,"Feb"]
[null,null,null,null,null,null,null,null,null,null,"Mar"]
[null,null,null,null,null,null,null,null,null,null,"Apr"]
[null,null,null,null,null,null,null,null,null,null,"May"]
[null,null,null,null,null,null,null,null,null,null,"Jun"]
[null,null,null,null,null,null,null,null,null,null,"Jul"]
[null,null,null,null,null,null,null,null,null,null,"Aug"]
[null,null,null,null,null,null,null,null,null,null,"Sep"]
[null,null,null,null,null,null,null,null,null,null,"Oct"]
[null,null,null,null,null,null,null,null,null,null,"Nov"]
["Comments :",null,null,null,null,null,null,null,null,null,"Dec"]
["K3 facility operates 2 lines (2 boilers and 2 emission points) with 1 common turbine.",null,null,null,null,null,null,null,null,null,"Annual",{"$f":"AVERAGE(L37:L48)","v":{"$error":"#DIV/0!"}},{"$f":"MAX(M37:M48)","v":0},{"$f":"AVERAGE(N37:N48)","v":{"$error":"#DIV/0!"}},{"$f":"MAX(O37:O48)","v":0}]
[]
[null,null,null,null,null,null,null,null,null,{"$f":"+A6","v":2023},"mg/Nm3","Monthly 1/2 hourly mean","Monthly 1/2 hourly maximum","Monthly daily mean","Monthly daily maximum"]
[null,null,null,null,null,null,null,null,null,"A4","Jan"]
[null,null,null,null,null,null,null,null,null,null,"Feb"]
[null,null,null,null,null,null,null,null,null,null,"Mar"]
[null,null,null,null,null,null,null,null,null,null,"Apr"]
[null,null,null,null,null,null,null,null,null,null,"May"]
[null,null,null,null,null,null,null,null,null,null,"Jun"]
[null,null,null,null,null,null,null,null,null,null,"Jul"]
[null,null,null,null,null,null,null,null,null,null,"Aug"]
[null,null,null,null,null,null,null,null,null,null,"Sep"]
[null,null,null,null,null,null,null,null,null,null,"Oct"]
[null,null,null,null,null,null,null,null,null,null,"Nov"]
[null,null,null,null,null,null,null,null,null,null,"Dec"]
[null,null,null,null,null,null,null,null,null,null,"Annual",{"$f":"AVERAGE(L52:L63)","v":{"$error":"#DIV/0!"}},{"$f":"MAX(M52:M63)","v":0},{"$f":"AVERAGE(N52:N63)","v":{"$error":"#DIV/0!"}},{"$f":"MAX(O52:O63)","v":0}]
[]
[null,null,null,null,null,null,null,null,null,{"$f":"+A6","v":2023},"mg/Nm3","Monthly 1/2 hourly mean","Monthly 1/2 hourly maximum","Monthly daily mean","Monthly daily maximum"]
[null,null,null,null,null,null,null,null,null,"A5","Jan"]
[null,null,null,null,null,null,null,null,null,null,"Feb"]
[null,null,null,null,null,null,null,null,null,null,"Mar"]
[null,null,null,null,null,null,null,null,null,null,"Apr"]
[null,null,null,null,null,null,null,null,null,null,"May"]
[null,null,null,null,null,null,null,null,null,null,"Jun"]
[null,null,null,null,null,null,null,null,null,null,"Jul"]
[null,null,null,null,null,null,null,null,null,null,"Aug"]
[null,null,null,null,null,null,null,null,null,null,"Sep"]
[null,null,null,null,null,null,null,null,null,null,"Oct"]
[null,null,null,null,null,null,null,null,null,null,"Nov"]
[null,null,null,null,null,null,null,null,null,null,"Dec"]
[null,null,null,null,null,null,null,null,null,null,"Annual",{"$f":"AVERAGE(L67:L78)","v":{"$error":"#DIV/0!"}},{"$f":"MAX(M67:M78)","v":0},{"$f":"AVERAGE(N67:N78)","v":{"$error":"#DIV/0!"}},{"$f":"MAX(O67:O78)","v":0}]

{"sheet":"Particulates","index":19,"n_rows":79,"n_cols":17,"rows_kept":79,"cut":false,"hidden":false,"merged":[[3,16,7,18],[9,16,11,18],[12,16,15,18],[66,9,78,9],[4,1,4,3],[4,4,4,6],[4,9,4,14],[6,9,18,9],[21,9,33,9],[36,9,48,9],[47,0,47,6],[48,0,51,6],[51,9,63,9]]}
[{"$f":"+'Cover Page'!$B$29","v":"Annual Performance Report 2023"},null,null,null,{"$f":"+'Cover Page'!$B$33","v":"Kemsley Generating Station"}]
[]
["Monitoring of Particulate matter emissions",null,null,"Whole Installation",null,null,"See  Notes in Cell Q3",null,null,{"$f":"+A3","v":"Monitoring of Particulate matter emissions"},null,null,null,"Per Combustion Line",null,null,"Notes:"]
[null,null,null,null,null,null,null,null,null,null,null,null,null,null,null,null,"User to add logic to complete Whole installation, Table A5:G18. From the data in Per Combustion Line, Table J6:O79, subject to No. of lines installed"]
["mg/Nm3","1/2 Hourly Reference Periods",null,null,"Daily Reference Periods"]
[{"$f":"+'Cover Page'!C39","v":2023},"1/2 hourly PM ELV","Monthly 1/2 hourly mean","Highest 1/2 hourly maximum","Daily PM ELV","Monthly daily mean","Highest daily maximum",null,null,{"$f":"+A6","v":2023},"mg/Nm3","Monthly 1/2 hourly mean","Monthly 1/2 hourly maximum","Monthly daily mean","Monthly daily maximum"]
["Jan",30,7.0000000000000007E-2,0.17,10,7.0000000000000007E-2,0.08,null,null,"A1","Jan",7.0000000000000007E-2,0.17,7.0000000000000007E-2,7.0000000000000007E-2]
["Feb",30,7.0000000000000007E-2,0.11,10,7.0000000000000007E-2,0.09,null,null,null,"Feb",7.0000000000000007E-2,0.11,7.0000000000000007E-2,0.09]
["Mar",30,0.13,0.97,10,0.13,0.41,null,null,null,"Mar",0.08,0.18,0.08,0.09,null,"Whole Installation table A5:G18:"]
["Apr",30,0.18,1.59,10,0.18,0.77,null,null,null,"Apr",7.0000000000000007E-2,0.14000000000000001,7.0000000000000007E-2,7.0000000000000007E-2,null,"Mean: for 1/2 hourly and daily periods calculate mean of values across all operational combustion lines for the month"]
["May",30,0.08,0.16,10,7.0000000000000007E-2,0.09,null,null,null,"May",7.0000000000000007E-2,0.16,7.0000000000000007E-2,0.09]
["Jun",30,0.1,0.51,10,0.1,0.18,null,null,null,"Jun",0.09,0.33,0.09,0.12]
["Jul",30,0.14000000000000001,1.21,10,0.14000000000000001,0.47,null,null,null,"Jul",0.18,1.21,0.18,0.47,null,"Maximum: for 1/2 hourly and daily periods use the highest value across all operational combustion lines for the month"]
["Aug",30,0.22,1.4,10,0.22,0.65,null,null,null,"Aug",0.37,1.4,0.39,0.65]
["Sep",30,0.36,3.02,10,0.36,0.7,null,null,null,"Sep",0.56000000000000005,3.02,0.55000000000000004,0.7]
["Oct",30,0.1,0.43,10,0.1,0.17,null,null,null,"Oct",0.08,0.12,0.08,0.08]
["Nov",30,0.1,0.56999999999999995,10,0.1,0.25,null,null,null,"Nov",0.08,0.13,0.08,0.08]
["Dec",30,0.09,0.31,10,0.09,0.15,null,null,null,"Dec",0.08,0.11,0.08,0.09]
[null,null,null,null,null,null,null,null,null,null,"Annual",{"$f":"AVERAGE(L7:L18)","v":0.15000000000000002},{"$f":"MAX(M7:M18)","v":3.02},{"$f":"AVERAGE(N7:N18)","v":0.15083333333333335},{"$f":"MAX(O7:O18)","v":0.7}]
[]
[null,null,null,null,null,null,null,null,null,{"$f":"+A6","v":2023},"mg/Nm3","Monthly 1/2 hourly mean","Monthly 1/2 hourly maximum","Monthly daily mean","Monthly daily maximum"]
[null,null,null,null,null,null,null,null,null,"A2","Jan",0.08,0.1,0.08,0.08]
[null,null,null,null,null,null,null,null,null,null,"Feb",0.08,0.09,0.08,0.08]
[null,null,null,null,null,null,null,null,null,null,"Mar",0.15,0.97,0.15,0.41]
[null,null,null,null,null,null,null,null,null,null,"Apr",0.28000000000000003,1.59,0.28000000000000003,0.77]
[null,null,null,null,null,null,null,null,null,null,"May",0.08,0.1,0.08,0.08]
[null,null,null,null,null,null,null,null,null,null,"Jun",0.12,0.51,0.12,0.18]
[null,null,null,null,null,null,null,null,null,null,"Jul",0.09,0.28000000000000003,0.09,0.13]
[null,null,null,null,null,null,null,null,null,null,"Aug",0.09,0.44,0.09,0.21]
[null,null,null,null,null,null,null,null,null,null,"Sep",0.25,1.74,0.25,0.48]
[null,null,null,null,null,null,null,null,null,null,"Oct",0.12,0.43,0.12,0.17]
[null,null,null,null,null,null,null,null,null,null,"Nov",0.11,0.56999999999999995,0.11,0.25]
[null,null,null,null,null,null,null,null,null,null,"Dec",0.1,0.31,0.1,0.15]
[null,null,null,null,null,null,null,null,null,null,"Annual",{"$f":"AVERAGE(L22:L33)","v":0.12916666666666668},{"$f":"MAX(M22:M33)","v":1.74},{"$f":"AVERAGE(N22:N33)","v":0.12916666666666668},{"$f":"MAX(O22:O33)","v":0.77}]
[]
[null,null,null,null,null,null,null,null,null,{"$f":"+A6","v":2023},"mg/Nm3","Monthly 1/2 hourly mean","Monthly 1/2 hourly maximum","Monthly daily mean","Monthly daily maximum"]
[null,null,null,null,null,null,null,null,null,"A3","Jan"]
[null,null,null,null,null,null,null,null,null,null,"Feb"]
[null,null,null,null,null,null,null,null,null,null,"Mar"]
[null,null,null,null,null,null,null,null,null,null,"Apr"]
[null,null,null,null,null,null,null,null,null,null,"May"]
[null,null,null,null,null,null,null,null,null,null,"Jun"]
[null,null,null,null,null,null,null,null,null,null,"Jul"]
[null,null,null,null,null,null,null,null,null,null,"Aug"]
[null,null,null,null,null,null,null,null,null,null,"Sep"]
[null,null,null,null,null,null,null,null,null,null,"Oct"]
[null,null,null,null,null,null,null,null,null,null,"Nov"]
["Comments :",null,null,null,null,null,null,null,null,null,"Dec"]
["K3 facility operates 2 lines (2 boilers and 2 emission points) with 1 common turbine.",null,null,null,null,null,null,null,null,null,"Annual",{"$f":"AVERAGE(L37:L48)","v":{"$error":"#DIV/0!"}},{"$f":"MAX(M37:M48)","v":0},{"$f":"AVERAGE(N37:N48)","v":{"$error":"#DIV/0!"}},{"$f":"MAX(O37:O48)","v":0}]
[]
[null,null,null,null,null,null,null,null,null,{"$f":"+A6","v":2023},"mg/Nm3","Monthly 1/2 hourly mean","Monthly 1/2 hourly maximum","Monthly daily mean","Monthly daily maximum"]
[null,null,null,null,null,null,null,null,null,"A4","Jan"]
[null,null,null,null,null,null,null,null,null,null,"Feb"]
[null,null,null,null,null,null,null,null,null,null,"Mar"]
[null,null,null,null,null,null,null,null,null,null,"Apr"]
[null,null,null,null,null,null,null,null,null,null,"May"]
[null,null,null,null,null,null,null,null,null,null,"Jun"]
[null,null,null,null,null,null,null,null,null,null,"Jul"]
[null,null,null,null,null,null,null,null,null,null,"Aug"]
[null,null,null,null,null,null,null,null,null,null,"Sep"]
[null,null,null,null,null,null,null,null,null,null,"Oct"]
[null,null,null,null,null,null,null,null,null,null,"Nov"]
[null,null,null,null,null,null,null,null,null,null,"Dec"]
[null,null,null,null,null,null,null,null,null,null,"Annual",{"$f":"AVERAGE(L52:L63)","v":{"$error":"#DIV/0!"}},{"$f":"MAX(M52:M63)","v":0},{"$f":"AVERAGE(N52:N63)","v":{"$error":"#DIV/0!"}},{"$f":"MAX(O52:O63)","v":0}]
[]
[null,null,null,null,null,null,null,null,null,{"$f":"+A6","v":2023},"mg/Nm3","Monthly 1/2 hourly mean","Monthly 1/2 hourly maximum","Monthly daily mean","Monthly daily maximum"]
[null,null,null,null,null,null,null,null,null,"A5","Jan"]
[null,null,null,null,null,null,null,null,null,null,"Feb"]
[null,null,null,null,null,null,null,null,null,null,"Mar"]
[null,null,null,null,null,null,null,null,null,null,"Apr"]
[null,null,null,null,null,null,null,null,null,null,"May"]
[null,null,null,null,null,null,null,null,null,null,"Jun"]
[null,null,null,null,null,null,null,null,null,null,"Jul"]
[null,null,null,null,null,null,null,null,null,null,"Aug"]
[null,null,null,null,null,null,null,null,null,null,"Sep"]
[null,null,null,null,null,null,null,null,null,null,"Oct"]
[null,null,null,null,null,null,null,null,null,null,"Nov"]
[null,null,null,null,null,null,null,null,null,null,"Dec"]
[null,null,null,null,null,null,null,null,null,null,"Annual",{"$f":"AVERAGE(L67:L78)","v":{"$error":"#DIV/0!"}},{"$f":"MAX(M67:M78)","v":0},{"$f":"AVERAGE(N67:N78)","v":{"$error":"#DIV/0!"}},{"$f":"MAX(O67:O78)","v":0}]

{"sheet":"CO 0.5hourly","index":20,"n_rows":79,"n_cols":17,"rows_kept":79,"cut":false,"hidden":false,"merged":[[3,16,7,18],[9,16,11,18],[12,16,15,18],[66,9,78,9],[4,1,4,3],[4,4,4,6],[4,9,4,14],[6,9,18,9],[21,9,33,9],[36,9,48,9],[47,0,47,6],[48,0,51,6],[51,9,63,9]]}
[{"$f":"+'Cover Page'!$B$29","v":"Annual Performance Report 2023"},null,null,null,{"$f":"+'Cover Page'!$B$33","v":"Kemsley Generating Station"}]
[]
["Monitoring of Carbon Monoxide (half hourly)",null,null,"Whole Installation",null,null,"See  Notes in Cell Q3",null,"*",{"$f":"+A3","v":"Monitoring of Carbon Monoxide (half hourly)"},null,null,null,"Per Combustion Line",null,null,"Notes:"]
[null,null,null,null,null,null,null,null,null,null,null,null,null,null,null,null,"User to add logic to complete Whole installation, Table A5:G18. From the data in Per Combustion Line, Table J6:O79, subject to No. of lines installed"]
["mg/Nm3","1/2 Hourly Reference Periods*",null,null,"Daily Reference Periods"]
[{"$f":"+'Cover Page'!C39","v":2023},"1/2 hourly CO ELV","Monthly 1/2 hourly mean","Highest 1/2 hourly maximum","Daily CO ELV","Monthly daily mean","Highest daily maximum",null,null,{"$f":"+A6","v":2023},"mg/Nm3","Monthly 1/2 hourly mean","Monthly 1/2 hourly maximum","Monthly daily mean","Monthly daily maximum"]
["Jan",100,"N/A","N/A",50,3.59,5.37,null,null,"A1","Jan","N/A","N/A",4.2300000000000004,5.37]
["Feb",100,"N/A","N/A",50,3.82,6.98,null,null,null,"Feb","N/A","N/A",4.67,6.98]
["Mar",100,"N/A","N/A",50,3.48,8.77,null,null,null,"Mar","N/A","N/A",4.4800000000000004,5.74,null,"Whole Installation table A5:G18:"]
["Apr",100,"N/A","N/A",50,3.5,7.96,null,null,null,"Apr","N/A","N/A",4.4000000000000004,7.96,null,"Mean: for 1/2 hourly and daily periods calculate mean of values across all operational combustion lines for the month"]
["May",100,"N/A","N/A",50,3.57,5.78,null,null,null,"May","N/A","N/A",4.0599999999999996,5.78]
["Jun",100,"N/A","N/A",50,3.66,6.47,null,null,null,"Jun","N/A","N/A",3.97,6.47]
["Jul",100,"N/A","N/A",50,3.26,5.15,null,null,null,"Jul","N/A","N/A",3.68,5.15,null,"Maximum: for 1/2 hourly and daily periods use the highest value across all operational combustion lines for the month"]
["Aug",100,"N/A","N/A",50,3.19,5.79,null,null,null,"Aug","N/A","N/A",3.97,5.7]
["Sep",100,"N/A","N/A",50,3,4.5199999999999996,null,null,null,"Sep","N/A","N/A",3.64,4.5199999999999996]
["Oct",100,"N/A","N/A",50,3.18,4.84,null,null,null,"Oct","N/A","N/A",3.56,4.84]
["Nov",100,"N/A","N/A",50,3.39,5.96,null,null,null,"Nov","N/A","N/A",3.63,5.22]
["Dec",100,"N/A","N/A",50,3.52,6.28,null,null,null,"Dec","N/A","N/A",3.56,5.72]
[null,null,null,null,null,null,null,null,null,null,"Annual",{"$f":"AVERAGE(L7:L18)","v":{"$error":"#DIV/0!"}},{"$f":"MAX(M7:M18)","v":0},{"$f":"AVERAGE(N7:N18)","v":3.9875000000000007},{"$f":"MAX(O7:O18)","v":7.96}]
[]
[null,null,null,null,null,null,null,null,null,{"$f":"+A6","v":2023},"mg/Nm3","Monthly 1/2 hourly mean","Monthly 1/2 hourly maximum","Monthly daily mean","Monthly daily maximum"]
[null,null,null,null,null,null,null,null,null,"A2","Jan","N/A","N/A",2.95,3.62]
[null,null,null,null,null,null,null,null,null,null,"Feb","N/A","N/A",3.12,4.71]
[null,null,null,null,null,null,null,null,null,null,"Mar","N/A","N/A",3.13,8.77]
[null,null,null,null,null,null,null,null,null,null,"Apr","N/A","N/A",2.69,3.39]
[null,null,null,null,null,null,null,null,null,null,"May","N/A","N/A",3.13,5.12]
[null,null,null,null,null,null,null,null,null,null,"Jun","N/A","N/A",3.25,4.75]
[null,null,null,null,null,null,null,null,null,null,"Jul","N/A","N/A",2.78,4.5599999999999996]
[null,null,null,null,null,null,null,null,null,null,"Aug","N/A","N/A",2.6,5.79]
[null,null,null,null,null,null,null,null,null,null,"Sep","N/A","N/A",2.64,4.5199999999999996]
[null,null,null,null,null,null,null,null,null,null,"Oct","N/A","N/A",2.76,3.71]
[null,null,null,null,null,null,null,null,null,null,"Nov","N/A","N/A",3.17,5.96]
[null,null,null,null,null,null,null,null,null,null,"Dec","N/A","N/A",3.48,6.28]
[null,null,null,null,null,null,null,null,null,null,"Annual",{"$f":"AVERAGE(L22:L33)","v":{"$error":"#DIV/0!"}},{"$f":"MAX(M22:M33)","v":0},{"$f":"AVERAGE(N22:N33)","v":2.9750000000000001},{"$f":"MAX(O22:O33)","v":8.77}]
[]
[null,null,null,null,null,null,null,null,null,{"$f":"+A6","v":2023},"mg/Nm3","Monthly 1/2 hourly mean","Monthly 1/2 hourly maximum","Monthly daily mean","Monthly daily maximum"]
[null,null,null,null,null,null,null,null,null,"A3","Jan"]
[null,null,null,null,null,null,null,null,null,null,"Feb"]
[null,null,null,null,null,null,null,null,null,null,"Mar"]
[null,null,null,null,null,null,null,null,null,null,"Apr"]
[null,null,null,null,null,null,null,null,null,null,"May"]
[null,null,null,null,null,null,null,null,null,null,"Jun"]
[null,null,null,null,null,null,null,null,null,null,"Jul"]
[null,null,null,null,null,null,null,null,null,null,"Aug"]
[null,null,null,null,null,null,null,null,null,null,"Sep"]
[null,null,null,null,null,null,null,null,null,null,"Oct"]
[null,null,null,null,null,null,null,null,null,null,"Nov"]
["Comments :",null,null,null,null,null,null,null,null,null,"Dec"]
["K3 facility operates 2 lines (2 boilers and 2 emission points) with 1 common turbine.\n*CO permit complince at this facility is based on 95%ile 10-min avgerage not half hourly averages.",null,null,null,null,null,null,null,null,null,"Annual",{"$f":"AVERAGE(L37:L48)","v":{"$error":"#DIV/0!"}},{"$f":"MAX(M37:M48)","v":0},{"$f":"AVERAGE(N37:N48)","v":{"$error":"#DIV/0!"}},{"$f":"MAX(O37:O48)","v":0}]
[]
[null,null,null,null,null,null,null,null,null,{"$f":"+A6","v":2023},"mg/Nm3","Monthly 1/2 hourly mean","Monthly 1/2 hourly maximum","Monthly daily mean","Monthly daily maximum"]
[null,null,null,null,null,null,null,null,null,"A4","Jan"]
[null,null,null,null,null,null,null,null,null,null,"Feb"]
[null,null,null,null,null,null,null,null,null,null,"Mar"]
[null,null,null,null,null,null,null,null,null,null,"Apr"]
[null,null,null,null,null,null,null,null,null,null,"May"]
[null,null,null,null,null,null,null,null,null,null,"Jun"]
[null,null,null,null,null,null,null,null,null,null,"Jul"]
[null,null,null,null,null,null,null,null,null,null,"Aug"]
[null,null,null,null,null,null,null,null,null,null,"Sep"]
[null,null,null,null,null,null,null,null,null,null,"Oct"]
[null,null,null,null,null,null,null,null,null,null,"Nov"]
[null,null,null,null,null,null,null,null,null,null,"Dec"]
[null,null,null,null,null,null,null,null,null,null,"Annual",{"$f":"AVERAGE(L52:L63)","v":{"$error":"#DIV/0!"}},{"$f":"MAX(M52:M63)","v":0},{"$f":"AVERAGE(N52:N63)","v":{"$error":"#DIV/0!"}},{"$f":"MAX(O52:O63)","v":0}]
[]
[null,null,null,null,null,null,null,null,null,{"$f":"+A6","v":2023},"mg/Nm3","Monthly 1/2 hourly mean","Monthly 1/2 hourly maximum","Monthly daily mean","Monthly daily maximum"]
[null,null,null,null,null,null,null,null,null,"A5","Jan"]
[null,null,null,null,null,null,null,null,null,null,"Feb"]
[null,null,null,null,null,null,null,null,null,null,"Mar"]
[null,null,null,null,null,null,null,null,null,null,"Apr"]
[null,null,null,null,null,null,null,null,null,null,"May"]
[null,null,null,null,null,null,null,null,null,null,"Jun"]
[null,null,null,null,null,null,null,null,null,null,"Jul"]
[null,null,null,null,null,null,null,null,null,null,"Aug"]
[null,null,null,null,null,null,null,null,null,null,"Sep"]
[null,null,null,null,null,null,null,null,null,null,"Oct"]
[null,null,null,null,null,null,null,null,null,null,"Nov"]
[null,null,null,null,null,null,null,null,null,null,"Dec"]
[null,null,null,null,null,null,null,null,null,null,"Annual",{"$f":"AVERAGE(L67:L78)","v":{"$error":"#DIV/0!"}},{"$f":"MAX(M67:M78)","v":0},{"$f":"AVERAGE(N67:N78)","v":{"$error":"#DIV/0!"}},{"$f":"MAX(O67:O78)","v":0}]

{"sheet":"CO 95% 10 min","index":21,"n_rows":79,"n_cols":19,"rows_kept":79,"cut":false,"hidden":false,"merged":[[3,18,7,20],[9,18,11,20],[12,18,15,20],[66,10,78,10],[4,1,4,4],[4,5,4,7],[4,10,4,16],[6,10,18,10],[21,10,33,10],[36,10,48,10],[47,0,47,7],[48,0,51,7],[51,10,63,10]]}
[{"$f":"+'Cover Page'!$B$29","v":"Annual Performance Report 2023"},null,null,null,{"$f":"+'Cover Page'!$B$33","v":"Kemsley Generating Station"}]
[]
["Monitoring of Carbon Monoxide (10-minute avg)",null,null,null,"Whole Installation",null,null,"See  Notes in Cell S3",null,{"$f":"+A3","v":"Monitoring of Carbon Monoxide (10-minute avg)"},null,null,null,null,"Per Combustion Line",null,"Notes:",null,"Notes:"]
[null,null,null,null,null,null,null,null,null,null,null,null,null,null,null,null,null,null,"User to add logic to complete Whole installation, Table A5:H18. From the data in Per Combustion Line, Table K6:Q79, subject to No. of lines installed"]
["mg/Nm3","10-minute Reference Periods",null,null,null,"Daily Reference Periods"]
[{"$f":"+'Cover Page'!C39","v":2023},"95%ile 10-min avg CO ELV","95%ile 10-min avg maximum","Monthly CO 10-min avg mean","10-min avg maximum","Daily CO ELV","Monthly daily mean","Highest daily maximum",null,null,{"$f":"+A6","v":2023},"mg/Nm3","95%ile 10-min avg maximum","Monthly CO 10-min avg mean","10-min avg maximum","Monthly daily mean","Monthly daily maximum"]
["Jan",150,10.34,3.58,157.4,50,3.58,5.37,null,null,"A1","Jan",10.34,4.2300000000000004,157.4,4.2300000000000004,5.37]
["Feb",{"$f":"+B7","v":150},15.5,3.84,307.7,50,3.82,6.98,null,null,null,"Feb",15.5,4.67,307.7,4.67,6.98]
["Mar",{"$f":"+B8","v":150},14.82,3.67,612.05999999999995,50,3.47,8.77,null,null,null,"Mar",14.82,5.13,612.05999999999995,4.4800000000000004,5.74,null,"Whole Installation table A5:H18:"]
["Apr",150,39.159999999999997,3.52,479.44,50,3.5,7.96,null,null,null,"Apr",39.159999999999997,4.43,479.44,4.4000000000000004,7.96,null,"Mean: for 10-min and daily periods use average of all operational combustion lines."]
["May",150,15.59,3.57,264.93,50,3.58,5.79,null,null,null,"May",15.59,4.05,264.93,4.0599999999999996,5.79]
["Jun",150,7.89,3.65,312.58999999999997,50,3.67,6.47,null,null,null,"Jun",7.89,3.98,266.74,3.98,6.47]
["Jul",150,14.07,3.29,205.65,50,3.26,5.15,null,null,null,"Jul",14.07,3.73,205.65,3.68,5.15,null,"Maximum: for 10-min and daily periods use the highest of all operational combustion lines in any month."]
["Aug",150,9.9499999999999993,3.21,567.21,50,3.2,5.79,null,null,null,"Aug",9.9499999999999993,3.95,345.06,3.97,5.7]
["Sep",150,25.06,3.05,170.07,50,3,4.6900000000000004,null,null,null,"Sep",8.7100000000000009,3.63,170.07,3.65,4.6900000000000004]
["Oct",150,10.51,3.22,235.66,50,3.18,4.8099999999999996,null,null,null,"Oct",10.51,3.61,235.66,3.56,4.8099999999999996]
["Nov",150,12.03,3.4,252.71,50,3.39,5.94,null,null,null,"Nov",6.67,3.66,252.71,3.63,5.22]
["Dec",150,21.28,3.5,237.43,50,3.52,6.28,null,null,null,"Dec",18.149999999999999,3.55,187.41,3.56,5.72]
[null,null,null,null,null,null,null,null,null,null,null,"Annual",{"$f":"AVERAGE(M7:M18)","v":14.28},null,{"$f":"MAX(O7:O18)","v":612.05999999999995},{"$f":"AVERAGE(P7:P18)","v":3.9891666666666672},{"$f":"MAX(Q7:Q18)","v":7.96}]
[]
[null,null,null,null,null,null,null,null,null,null,{"$f":"+A6","v":2023},"mg/Nm3","95%ile 10-min avg maximum","Monthly CO 10-min avg mean","10-min avg maximum","Monthly daily mean","Monthly daily maximum"]
[null,null,null,null,null,null,null,null,null,null,"A2","Jan",8.5,2.94,116.17,2.94,3.62]
[null,null,null,null,null,null,null,null,null,null,null,"Feb",6.1,3.12,303.43,3.12,4.71]
[null,null,null,null,null,null,null,null,null,null,null,"Mar",6.53,3.11,431.97,3.12,8.77]
[null,null,null,null,null,null,null,null,null,null,null,"Apr",5.41,2.69,81.739999999999995,2.69,3.39]
[null,null,null,null,null,null,null,null,null,null,null,"May",10.32,3.12,179.63,3.13,5.12]
[null,null,null,null,null,null,null,null,null,null,null,"Jun",6.59,3.24,312.58999999999997,3.25,4.75]
[null,null,null,null,null,null,null,null,null,null,null,"Jul",9.9499999999999993,2.8,117.75,2.78,4.5599999999999996]
[null,null,null,null,null,null,null,null,null,null,null,"Aug",6.88,2.6,567.21,2.6,5.79]
[null,null,null,null,null,null,null,null,null,null,null,"Sep",25.06,2.73,147.15,2.63,4.5199999999999996]
[null,null,null,null,null,null,null,null,null,null,null,"Oct",9.15,2.77,196.57,2.76,3.71]
[null,null,null,null,null,null,null,null,null,null,null,"Nov",12.03,3.16,189.99,3.18,5.94]
[null,null,null,null,null,null,null,null,null,null,null,"Dec",21.28,3.45,237.43,3.48,6.28]
[null,null,null,null,null,null,null,null,null,null,null,"Annual",{"$f":"AVERAGE(M22:M33)","v":10.65},null,{"$f":"MAX(O22:O33)","v":567.21},{"$f":"AVERAGE(P22:P33)","v":2.9733333333333332},{"$f":"MAX(Q22:Q33)","v":8.77}]
[]
[null,null,null,null,null,null,null,null,null,null,{"$f":"+A6","v":2023},"mg/Nm3","95%ile 10-min avg maximum","Monthly CO 10-min avg mean","10-min avg maximum","Monthly daily mean","Monthly daily maximum"]
[null,null,null,null,null,null,null,null,null,null,"A3","Jan"]
[null,null,null,null,null,null,null,null,null,null,null,"Feb"]
[null,null,null,null,null,null,null,null,null,null,null,"Mar"]
[null,null,null,null,null,null,null,null,null,null,null,"Apr"]
[null,null,null,null,null,null,null,null,null,null,null,"May"]
[null,null,null,null,null,null,null,null,null,null,null,"Jun"]
[null,null,null,null,null,null,null,null,null,null,null,"Jul"]
[null,null,null,null,null,null,null,null,null,null,null,"Aug"]
[null,null,null,null,null,null,null,null,null,null,null,"Sep"]
[null,null,null,null,null,null,null,null,null,null,null,"Oct"]
[null,null,null,null,null,null,null,null,null,null,null,"Nov"]
["Comments :",null,null,null,null,null,null,null,null,null,null,"Dec"]
["K3 facility operates 2 lines (2 boilers and 2 emission points) with 1 common turbine.\nEnvironment Agency explanatory note: The 10-minute average ELV is based on the “95th percentile”. In this case this means that 95% of the 10 minute averages in the relevant 24-hour period (i.e. 137) must be below 150 mg/Nm3, and 5% (i.e. 7) are allowed to be any value above 150 mg/Nm3. Whilst we expect operators to minimise CO emissions at all times, it is perfectly acceptable for the value of the maximum 10-minute average to be above 150 mg/Nm3, provided the 95th percentile ELV has been met for that period. ",null,null,null,null,null,null,null,null,null,null,"Annual",{"$f":"AVERAGE(M37:M48)","v":{"$error":"#DIV/0!"}},null,{"$f":"MAX(O37:O48)","v":0},{"$f":"AVERAGE(P37:P48)","v":{"$error":"#DIV/0!"}},{"$f":"MAX(Q37:Q48)","v":0}]
[]
[null,null,null,null,null,null,null,null,null,null,{"$f":"+A6","v":2023},"mg/Nm3","95%ile 10-min avg maximum","Monthly CO 10-min avg mean","10-min avg maximum","Monthly daily mean","Monthly daily maximum"]
[null,null,null,null,null,null,null,null,null,null,"A4","Jan"]
[null,null,null,null,null,null,null,null,null,null,null,"Feb"]
[null,null,null,null,null,null,null,null,null,null,null,"Mar"]
[null,null,null,null,null,null,null,null,null,null,null,"Apr"]
[null,null,null,null,null,null,null,null,null,null,null,"May"]
[null,null,null,null,null,null,null,null,null,null,null,"Jun"]
[null,null,null,null,null,null,null,null,null,null,null,"Jul"]
[null,null,null,null,null,null,null,null,null,null,null,"Aug"]
[null,null,null,null,null,null,null,null,null,null,null,"Sep"]
[null,null,null,null,null,null,null,null,null,null,null,"Oct"]
[null,null,null,null,null,null,null,null,null,null,null,"Nov"]
[null,null,null,null,null,null,null,null,null,null,null,"Dec"]
[null,null,null,null,null,null,null,null,null,null,null,"Annual",{"$f":"AVERAGE(M52:M63)","v":{"$error":"#DIV/0!"}},null,{"$f":"MAX(O52:O63)","v":0},{"$f":"AVERAGE(P52:P63)","v":{"$error":"#DIV/0!"}},{"$f":"MAX(Q52:Q63)","v":0}]
[]
[null,null,null,null,null,null,null,null,null,null,{"$f":"+A6","v":2023},"mg/Nm3","95%ile 10-min avg maximum","Monthly CO 10-min avg mean","10-min avg maximum","Monthly daily mean","Monthly daily maximum"]
[null,null,null,null,null,null,null,null,null,null,"A5","Jan"]
[null,null,null,null,null,null,null,null,null,null,null,"Feb"]
[null,null,null,null,null,null,null,null,null,null,null,"Mar"]
[null,null,null,null,null,null,null,null,null,null,null,"Apr"]
[null,null,null,null,null,null,null,null,null,null,null,"May"]
[null,null,null,null,null,null,null,null,null,null,null,"Jun"]
[null,null,null,null,null,null,null,null,null,null,null,"Jul"]
[null,null,null,null,null,null,null,null,null,null,null,"Aug"]
[null,null,null,null,null,null,null,null,null,null,null,"Sep"]
[null,null,null,null,null,null,null,null,null,null,null,"Oct"]
[null,null,null,null,null,null,null,null,null,null,null,"Nov"]
[null,null,null,null,null,null,null,null,null,null,null,"Dec"]
[null,null,null,null,null,null,null,null,null,null,null,"Annual",{"$f":"AVERAGE(M67:M78)","v":{"$error":"#DIV/0!"}},null,{"$f":"MAX(O67:O78)","v":0},{"$f":"AVERAGE(P67:P78)","v":{"$error":"#DIV/0!"}},{"$f":"MAX(Q67:Q78)","v":0}]

{"sheet":"NH3","index":22,"n_rows":79,"n_cols":17,"rows_kept":79,"cut":false,"hidden":false,"merged":[[3,16,7,18],[9,16,11,18],[12,16,15,18],[66,9,78,9],[4,1,4,3],[4,4,4,6],[4,9,4,14],[6,9,18,9],[21,9,33,9],[36,9,48,9],[47,0,47,6],[48,0,51,6],[51,9,63,9]]}
[{"$f":"+'Cover Page'!$B$29","v":"Annual Performance Report 2023"},null,null,null,{"$f":"+'Cover Page'!$B$33","v":"Kemsley Generating Station"}]
[]
["Monitoring of Ammnonia emissions ",null,null,"Whole Installation",null,null,"See  Notes in Cell Q3",null,null,{"$f":"+A3","v":"Monitoring of Ammnonia emissions "},null,null,null,"Per Combustion Line",null,null,"Notes:"]
[null,null,null,null,null,null,null,null,null,null,null,null,null,null,null,null,"User to add logic to complete Whole installation, Table A5:G18. From the data in Per Combustion Line, Table J6:O79, subject to No. of lines installed"]
["mg/Nm3","1/2 Hourly Reference Periods",null,null,"Daily Reference Periods"]
[{"$f":"+'Cover Page'!C39","v":2023},"*1/2 hourly NH3 ELV","Monthly 1/2 hourly mean","Highest 1/2 hourly maximum","Daily NH3 ELV","Monthly daily mean","Highest daily maximum",null,null,{"$f":"+A6","v":2023},"mg/Nm3","Monthly 1/2 hourly mean","Monthly 1/2 hourly maximum","Monthly daily mean","Monthly daily maximum"]
["Jan",0,0.28000000000000003,4.2300000000000004,10,0.28000000000000003,0.78,null,null,"A1","Jan",0.52,4.2300000000000004,0.52,0.78]
["Feb",0,0.22,1.6,10,0.22,0.77,null,null,null,"Feb",0.41,1.6,0.41,0.77]
["Mar",0,0.27,3.08,10,0.23,0.87,null,null,null,"Mar",0.49,2.56,0.43,0.87,null,"Whole Installation table A5:G18:"]
["Apr",0,0.14000000000000001,6.68,10,0.13,0.51,null,null,null,"Apr",0.14000000000000001,6.68,0.11,0.51,null,"Mean: for 1/2 hourly and daily periods calculate mean of values across all operational combustion lines for the month"]
["May",0,0.12,3.15,10,0.11,0.92,null,null,null,"May",0.16,3.15,0.15,0.92]
["Jun",0,0.43,4.49,10,0.44,1.21,null,null,null,"Jun",0.57999999999999996,4.49,0.57999999999999996,1.21]
["Jul",0,0.27,3.38,10,0.26,0.6,null,null,null,"Jul",0.32,1.61,0.31,0.6,null,"Maximum: for 1/2 hourly and daily periods use the highest value across all operational combustion lines for the month"]
["Aug",0,0.42,2.92,10,0.41,1.1599999999999999,null,null,null,"Aug",0.68,2.92,0.67,1.1599999999999999]
["Sep",0,0.25,2.62,10,0.26,0.62,null,null,null,"Sep",0.27,0.77,0.27,0.32]
["Oct",0,1.01,5.42,10,0.99,2.92,null,null,null,"Oct",1.64,5.42,1.64,2.92]
["Nov",0,1.1599999999999999,12.77,10,1.1100000000000001,5.34,null,null,null,"Nov",2.1800000000000002,12.77,2.13,5.34]
["Dec",0,0.34,2.27,10,0.33,0.86,null,null,null,"Dec",0.6,2.27,0.59,0.86]
[null,null,null,null,null,null,null,null,null,null,"Annual",{"$f":"AVERAGE(L7:L18)","v":0.66583333333333339},{"$f":"MAX(M7:M18)","v":12.77},{"$f":"AVERAGE(N7:N18)","v":0.65083333333333326},{"$f":"MAX(O7:O18)","v":5.34}]
[]
[null,null,null,null,null,null,null,null,null,{"$f":"+A6","v":2023},"mg/Nm3","Monthly 1/2 hourly mean","Monthly 1/2 hourly maximum","Monthly daily mean","Monthly daily maximum"]
[null,null,null,null,null,null,null,null,null,"A2","Jan",0.04,0.43,0.04,0.24]
[null,null,null,null,null,null,null,null,null,null,"Feb",0.06,0.79,0.06,0.13]
[null,null,null,null,null,null,null,null,null,null,"Mar",0.19,3.08,0.17,0.38]
[null,null,null,null,null,null,null,null,null,null,"Apr",0.15,3.98,0.15,0.37]
[null,null,null,null,null,null,null,null,null,null,"May",0.08,0.7,0.08,0.2]
[null,null,null,null,null,null,null,null,null,null,"Jun",0.26,0.83,0.25,0.45]
[null,null,null,null,null,null,null,null,null,null,"Jul",0.22,3.38,0.2,0.38]
[null,null,null,null,null,null,null,null,null,null,"Aug",0.21,0.66,0.21,0.32]
[null,null,null,null,null,null,null,null,null,null,"Sep",0.25,2.62,0.25,0.62]
[null,null,null,null,null,null,null,null,null,null,"Oct",0.28000000000000003,1.5,0.27,0.73]
[null,null,null,null,null,null,null,null,null,null,"Nov",0.21,2.34,0.21,0.66]
[null,null,null,null,null,null,null,null,null,null,"Dec",7.0000000000000007E-2,1.1399999999999999,0.06,0.16]
[null,null,null,null,null,null,null,null,null,null,"Annual",{"$f":"AVERAGE(L22:L33)","v":0.16833333333333333},{"$f":"MAX(M22:M33)","v":3.98},{"$f":"AVERAGE(N22:N33)","v":0.16250000000000001},{"$f":"MAX(O22:O33)","v":0.73}]
[]
[null,null,null,null,null,null,null,null,null,{"$f":"+A6","v":2023},"mg/Nm3","Monthly 1/2 hourly mean","Monthly 1/2 hourly maximum","Monthly daily mean","Monthly daily maximum"]
[null,null,null,null,null,null,null,null,null,"A3","Jan"]
[null,null,null,null,null,null,null,null,null,null,"Feb"]
[null,null,null,null,null,null,null,null,null,null,"Mar"]
[null,null,null,null,null,null,null,null,null,null,"Apr"]
[null,null,null,null,null,null,null,null,null,null,"May"]
[null,null,null,null,null,null,null,null,null,null,"Jun"]
[null,null,null,null,null,null,null,null,null,null,"Jul"]
[null,null,null,null,null,null,null,null,null,null,"Aug"]
[null,null,null,null,null,null,null,null,null,null,"Sep"]
[null,null,null,null,null,null,null,null,null,null,"Oct"]
[null,null,null,null,null,null,null,null,null,null,"Nov"]
["Comments :",null,null,null,null,null,null,null,null,null,"Dec"]
["K3 facility operates 2 lines (2 boilers and 2 emission points) with 1 common turbine.\n\n*An indicated ELV value of zero in the table above means that no ammonia limit is set in the permit; not that the ELV is 0. ",null,null,null,null,null,null,null,null,null,"Annual",{"$f":"AVERAGE(L37:L48)","v":{"$error":"#DIV/0!"}},{"$f":"MAX(M37:M48)","v":0},{"$f":"AVERAGE(N37:N48)","v":{"$error":"#DIV/0!"}},{"$f":"MAX(O37:O48)","v":0}]
[]
[null,null,null,null,null,null,null,null,null,{"$f":"+A6","v":2023},"mg/Nm3","Monthly 1/2 hourly mean","Monthly 1/2 hourly maximum","Monthly daily mean","Monthly daily maximum"]
[null,null,null,null,null,null,null,null,null,"A4","Jan"]
[null,null,null,null,null,null,null,null,null,null,"Feb"]
[null,null,null,null,null,null,null,null,null,null,"Mar"]
[null,null,null,null,null,null,null,null,null,null,"Apr"]
[null,null,null,null,null,null,null,null,null,null,"May"]
[null,null,null,null,null,null,null,null,null,null,"Jun"]
[null,null,null,null,null,null,null,null,null,null,"Jul"]
[null,null,null,null,null,null,null,null,null,null,"Aug"]
[null,null,null,null,null,null,null,null,null,null,"Sep"]
[null,null,null,null,null,null,null,null,null,null,"Oct"]
[null,null,null,null,null,null,null,null,null,null,"Nov"]
[null,null,null,null,null,null,null,null,null,null,"Dec"]
[null,null,null,null,null,null,null,null,null,null,"Annual",{"$f":"AVERAGE(L52:L63)","v":{"$error":"#DIV/0!"}},{"$f":"MAX(M52:M63)","v":0},{"$f":"AVERAGE(N52:N63)","v":{"$error":"#DIV/0!"}},{"$f":"MAX(O52:O63)","v":0}]
[]
[null,null,null,null,null,null,null,null,null,{"$f":"+A6","v":2023},"mg/Nm3","Monthly 1/2 hourly mean","Monthly 1/2 hourly maximum","Monthly daily mean","Monthly daily maximum"]
[null,null,null,null,null,null,null,null,null,"A5","Jan"]
[null,null,null,null,null,null,null,null,null,null,"Feb"]
[null,null,null,null,null,null,null,null,null,null,"Mar"]
[null,null,null,null,null,null,null,null,null,null,"Apr"]
[null,null,null,null,null,null,null,null,null,null,"May"]
[null,null,null,null,null,null,null,null,null,null,"Jun"]
[null,null,null,null,null,null,null,null,null,null,"Jul"]
[null,null,null,null,null,null,null,null,null,null,"Aug"]
[null,null,null,null,null,null,null,null,null,null,"Sep"]
[null,null,null,null,null,null,null,null,null,null,"Oct"]
[null,null,null,null,null,null,null,null,null,null,"Nov"]
[null,null,null,null,null,null,null,null,null,null,"Dec"]
[null,null,null,null,null,null,null,null,null,null,"Annual",{"$f":"AVERAGE(L67:L78)","v":{"$error":"#DIV/0!"}},{"$f":"MAX(M67:M78)","v":0},{"$f":"AVERAGE(N67:N78)","v":{"$error":"#DIV/0!"}},{"$f":"MAX(O67:O78)","v":0}]